Workbook

Sheet LISTE DES TIREURS
B2: TIR INTER-USINES | C2: ANNÉE | D2: =INDEX('LISTE DES TIREURS'!J$8:J$31,'LISTE DES TIREURS'!K8) -> 2023
F3: =D2 -> 2023
B5: LISTE DES TIREURS | C5: TOUT EN MAJUSCULE
B7: NOM PRÉNOM | C7: AN (1950) | D7: ARME - WAFFE | G7: NOUVEAU NOM DE GROUPE
J8: 2017 | K8: 7
E9: 8 | F9: 1 | G9: INDIVIDUEL | J9: 2018
G10: MITES A BETON 1 | J10: 2019
E11: 1 | G11: MITES A BETON 2 | J11: 2020
J12: 2021
E13: A | J13: 2022
E14: B | J14: 2023
E15: C | J15: 2024
J16: 2025
J17: 2026
J18: 2027
J19: 2028
J20: 2029
J21: 2030
J22: 2031
J23: 2032
J24: 2033
J25: 2034
J26: 2035
J27: 2036
J28: 2037
J29: 2038
J30: 2039
J31: 2040
G35: =G76 -> 0
G36: 0
G37: 0
G38: 0
A75: 1 | B75: PIATEK MATEUSZ | C75: 1991 | D75: =INDEX('LISTE DES TIREURS'!E$83:E$85,'LISTE DES TIREURS'!F83) -> F57 / M
A76: 2 | B76: PIATEK PAWEL | C76: 1974 | D76: =INDEX('LISTE DES TIREURS'!E$83:E$85,'LISTE DES TIREURS'!F84) -> F57 / M
A77: 3 | B77: RIESEN YVAN | C77: 1989 | D77: =INDEX('LISTE DES TIREURS'!E$83:E$85,'LISTE DES TIREURS'!F85) -> F90
A78: 4 | B78: SUDAN ANGELIQUE | C78: 1983 | D78: =INDEX('LISTE DES TIREURS'!E$83:E$85,'LISTE DES TIREURS'!F86) -> F90
A79: 5 | B79: SUDAN GERALDINE | C79: 1989 | D79: =INDEX('LISTE DES TIREURS'!E$83:E$85,'LISTE DES TIREURS'!F87) -> F90
A80: 6 | B80: SUDAN JEAN-CLAUDE | C80: 1959 | D80: =INDEX('LISTE DES TIREURS'!E$83:E$85,'LISTE DES TIREURS'!F88) -> F57 / M
A81: 7 | B81: SUDAN MURIELLE | C81: 1962 | D81: =INDEX('LISTE DES TIREURS'!E$83:E$85,'LISTE DES TIREURS'!F89) -> F90
A82: 8 | B82: THEVENAZ NICOLAS | C82: 1989 | D82: =INDEX('LISTE DES TIREURS'!E$83:E$85,'LISTE DES TIREURS'!F90) -> F90
A83: 9 | D83: =INDEX('LISTE DES TIREURS'!E$83:E$85,'LISTE DES TIREURS'!F91) -> 0 | F83: 3
A84: 10 | D84: =INDEX('LISTE DES TIREURS'!E$83:E$85,'LISTE DES TIREURS'!F92) -> 0 | E84: F90 | F84: 3
A85: 11 | D85: =INDEX('LISTE DES TIREURS'!E$83:E$85,'LISTE DES TIREURS'!F93) -> 0 | E85: F57 / M | F85: 2
A86: 12 | D86: =INDEX('LISTE DES TIREURS'!E$83:E$85,'LISTE DES TIREURS'!F94) -> 0 | F86: 2
A87: 13 | D87: =INDEX('LISTE DES TIREURS'!E$83:E$85,'LISTE DES TIREURS'!F95) -> 0 | F87: 2
A88: 14 | D88: =INDEX('LISTE DES TIREURS'!E$83:E$85,'LISTE DES TIREURS'!F96) -> 0 | F88: 3
A89: 15 | D89: =INDEX('LISTE DES TIREURS'!E$83:E$85,'LISTE DES TIREURS'!F97) -> 0 | F89: 2
A90: 16 | D90: =INDEX('LISTE DES TIREURS'!E$83:E$85,'LISTE DES TIREURS'!F98) -> 0 | F90: 2
A91: 17 | D91: =INDEX('LISTE DES TIREURS'!E$83:E$85,'LISTE DES TIREURS'!F99) -> 0 | F91: 1
A92: 18 | D92: =INDEX('LISTE DES TIREURS'!E$83:E$85,'LISTE DES TIREURS'!F100) -> 0 | F92: 1
A93: 19 | D93: =INDEX('LISTE DES TIREURS'!E$83:E$85,'LISTE DES TIREURS'!F101) -> 0 | F93: 1
A94: 20 | D94: =INDEX('LISTE DES TIREURS'!E$83:E$85,'LISTE DES TIREURS'!F102) -> 0 | F94: 1
A95: 21 | D95: =INDEX('LISTE DES TIREURS'!E$83:E$85,'LISTE DES TIREURS'!F103) -> 0 | F95: 1
A96: 22 | D96: =INDEX('LISTE DES TIREURS'!E$83:E$85,'LISTE DES TIREURS'!F104) -> 0 | F96: 1
A97: 23 | D97: =INDEX('LISTE DES TIREURS'!E$83:E$85,'LISTE DES TIREURS'!F105) -> 0 | F97: 1
A98: 24 | D98: =INDEX('LISTE DES TIREURS'!E$83:E$85,'LISTE DES TIREURS'!F106) -> 0 | F98: 1
A99: 25 | D99: =INDEX('LISTE DES TIREURS'!E$83:E$85,'LISTE DES TIREURS'!F107) -> 0 | F99: 1
A100: 26 | D100: =INDEX('LISTE DES TIREURS'!E$83:E$85,'LISTE DES TIREURS'!F108) -> 0 | F100: 1
A101: 27 | D101: =INDEX('LISTE DES TIREURS'!E$83:E$85,'LISTE DES TIREURS'!F109) -> 0 | F101: 1
A102: 28 | D102: =INDEX('LISTE DES TIREURS'!E$83:E$85,'LISTE DES TIREURS'!F110) -> 0 | F102: 1
A103: 29 | D103: =INDEX('LISTE DES TIREURS'!E$83:E$85,'LISTE DES TIREURS'!F111) -> 0 | F103: 1
A104: 30 | D104: =INDEX('LISTE DES TIREURS'!E$83:E$85,'LISTE DES TIREURS'!F112) -> 0 | F104: 1
A105: 31 | D105: =INDEX('LISTE DES TIREURS'!E$83:E$85,'LISTE DES TIREURS'!F113) -> 0 | F105: 1
A106: 32 | D106: =INDEX('LISTE DES TIREURS'!E$83:E$85,'LISTE DES TIREURS'!F114) -> 0 | F106: 1
A107: 33 | D107: =INDEX('LISTE DES TIREURS'!E$83:E$85,'LISTE DES TIREURS'!F115) -> 0 | F107: 1
A108: 34 | D108: =INDEX('LISTE DES TIREURS'!E$83:E$85,'LISTE DES TIREURS'!F116) -> 0 | F108: 1
A109: 35 | D109: =INDEX('LISTE DES TIREURS'!E$83:E$85,'LISTE DES TIREURS'!F117) -> 0 | F109: 1
A110: 36 | D110: =INDEX('LISTE DES TIREURS'!E$83:E$85,'LISTE DES TIREURS'!F118) -> 0 | F110: 1
A111: 37 | D111: =INDEX('LISTE DES TIREURS'!E$83:E$85,'LISTE DES TIREURS'!F119) -> 0 | F111: 1
A112: 38 | D112: =INDEX('LISTE DES TIREURS'!E$83:E$85,'LISTE DES TIREURS'!F120) -> 0 | F112: 1
A113: 39 | D113: =INDEX('LISTE DES TIREURS'!E$83:E$85,'LISTE DES TIREURS'!F121) -> 0 | F113: 1
A114: 40 | D114: =INDEX('LISTE DES TIREURS'!E$83:E$85,'LISTE DES TIREURS'!F122) -> 0 | F114: 1
A115: 41 | D115: =INDEX('LISTE DES TIREURS'!E$83:E$85,'LISTE DES TIREURS'!F123) -> 0 | F115: 1
A116: 42 | D116: =INDEX('LISTE DES TIREURS'!E$83:E$85,'LISTE DES TIREURS'!F124) -> 0 | F116: 1
A117: 43 | D117: =INDEX('LISTE DES TIREURS'!E$83:E$85,'LISTE DES TIREURS'!F125) -> 0 | F117: 1
A118: 44 | D118: =INDEX('LISTE DES TIREURS'!E$83:E$85,'LISTE DES TIREURS'!F126) -> 0 | F118: 1
A119: 45 | D119: =INDEX('LISTE DES TIREURS'!E$83:E$85,'LISTE DES TIREURS'!F127) -> 0 | F119: 1
A120: 46 | D120: =INDEX('LISTE DES TIREURS'!E$83:E$85,'LISTE DES TIREURS'!F128) -> 0 | F120: 1
A121: 47 | D121: =INDEX('LISTE DES TIREURS'!E$83:E$85,'LISTE DES TIREURS'!F129) -> 0 | F121: 1
A122: 48 | D122: =INDEX('LISTE DES TIREURS'!E$83:E$85,'LISTE DES TIREURS'!F130) -> 0 | F122: 1
A123: 49 | D123: =INDEX('LISTE DES TIREURS'!E$83:E$85,'LISTE DES TIREURS'!F131) -> 0 | F123: 1
A124: 50 | D124: =INDEX('LISTE DES TIREURS'!E$83:E$85,'LISTE DES TIREURS'!F132) -> 0 | F124: 1
A125: 51 | D125: =INDEX('LISTE DES TIREURS'!E$83:E$85,'LISTE DES TIREURS'!F$133) -> 0 | F125: 1
A126: 52 | D126: =INDEX('LISTE DES TIREURS'!E$83:E$85,'LISTE DES TIREURS'!F134) -> 0 | F126: 1
A127: 53 | D127: =INDEX('LISTE DES TIREURS'!E$83:E$85,'LISTE DES TIREURS'!F135) -> 0 | F127: 1
A128: 54 | D128: =INDEX('LISTE DES TIREURS'!E$83:E$85,'LISTE DES TIREURS'!F136) -> 0 | F128: 1
A129: 55 | D129: =INDEX('LISTE DES TIREURS'!E$83:E$85,'LISTE DES TIREURS'!F137) -> 0 | F129: 1
A130: 56 | D130: =INDEX('LISTE DES TIREURS'!E$83:E$85,'LISTE DES TIREURS'!F138) -> 0 | F130: 1
A131: 57 | D131: =INDEX('LISTE DES TIREURS'!E$83:E$85,'LISTE DES TIREURS'!F139) -> 0 | F131: 1
A132: 58 | D132: =INDEX('LISTE DES TIREURS'!E$83:E$85,'LISTE DES TIREURS'!F140) -> 0 | F132: 1
A133: 59 | D133: =INDEX('LISTE DES TIREURS'!E$83:E$85,'LISTE DES TIREURS'!F141) -> 0 | F133: 1
A134: 60 | D134: =INDEX('LISTE DES TIREURS'!E$83:E$85,'LISTE DES TIREURS'!F142) -> 0 | F134: 1
A135: 61 | D135: =INDEX('LISTE DES TIREURS'!E$83:E$85,'LISTE DES TIREURS'!F143) -> 0 | F135: 1
A136: 62 | D136: =INDEX('LISTE DES TIREURS'!E$83:E$85,'LISTE DES TIREURS'!F144) -> 0 | F136: 1
A137: 63 | D137: =INDEX('LISTE DES TIREURS'!E$83:E$85,'LISTE DES TIREURS'!F145) -> 0 | F137: 1
A138: 64 | D138: =INDEX('LISTE DES TIREURS'!E$83:E$85,'LISTE DES TIREURS'!F146) -> 0 | F138: 1
A139: 65 | D139: =INDEX('LISTE DES TIREURS'!E$83:E$85,'LISTE DES TIREURS'!F147) -> 0 | F139: 1
A140: 66 | D140: =INDEX('LISTE DES TIREURS'!E$83:E$85,'LISTE DES TIREURS'!F148) -> 0 | F140: 1
A141: 67 | D141: =INDEX('LISTE DES TIREURS'!E$83:E$85,'LISTE DES TIREURS'!F149) -> 0 | F141: 1
A142: 68 | D142: =INDEX('LISTE DES TIREURS'!E$83:E$85,'LISTE DES TIREURS'!F150) -> 0 | F142: 1
A143: 69 | D143: =INDEX('LISTE DES TIREURS'!E$83:E$85,'LISTE DES TIREURS'!F151) -> 0 | F143: 1
A144: 70 | D144: =INDEX('LISTE DES TIREURS'!E$83:E$85,'LISTE DES TIREURS'!F152) -> 0 | F144: 1
A145: 71 | D145: =INDEX('LISTE DES TIREURS'!E$83:E$85,'LISTE DES TIREURS'!F153) -> 0 | F145: 1
A146: 72 | D146: =INDEX('LISTE DES TIREURS'!E$83:E$85,'LISTE DES TIREURS'!F154) -> 0 | F146: 1
A147: 73 | D147: =INDEX('LISTE DES TIREURS'!E$83:E$85,'LISTE DES TIREURS'!F155) -> 0 | F147: 1
A148: 74 | D148: =INDEX('LISTE DES TIREURS'!E$83:E$85,'LISTE DES TIREURS'!F156) -> 0 | F148: 1
A149: 75 | D149: =INDEX('LISTE DES TIREURS'!E$83:E$85,'LISTE DES TIREURS'!F157) -> 0 | F149: 1
A150: 76 | D150: =INDEX('LISTE DES TIREURS'!E$83:E$85,'LISTE DES TIREURS'!F158) -> 0 | F150: 1
A151: 77 | D151: =INDEX('LISTE DES TIREURS'!E$83:E$85,'LISTE DES TIREURS'!F159) -> 0 | F151: 1
A152: 78 | D152: =INDEX('LISTE DES TIREURS'!E$83:E$85,'LISTE DES TIREURS'!F160) -> 0 | F152: 1
A153: 79 | D153: =INDEX('LISTE DES TIREURS'!E$83:E$85,'LISTE DES TIREURS'!F161) -> 0 | F153: 1
A154: 80 | D154: =INDEX('LISTE DES TIREURS'!E$83:E$85,'LISTE DES TIREURS'!F162) -> 0 | F154: 1
A155: 81 | D155: =INDEX('LISTE DES TIREURS'!E$83:E$85,'LISTE DES TIREURS'!F163) -> 0 | F155: 1
A156: 82 | D156: =INDEX('LISTE DES TIREURS'!E$83:E$85,'LISTE DES TIREURS'!F164) -> 0 | F156: 1
A157: 83 | D157: =INDEX('LISTE DES TIREURS'!E$83:E$85,'LISTE DES TIREURS'!F165) -> 0 | F157: 1
A158: 84 | D158: =INDEX('LISTE DES TIREURS'!E$83:E$85,'LISTE DES TIREURS'!F166) -> 0 | F158: 1
A159: 85 | D159: =INDEX('LISTE DES TIREURS'!E$83:E$85,'LISTE DES TIREURS'!F167) -> 0 | F159: 1
A160: 86 | D160: =INDEX('LISTE DES TIREURS'!E$83:E$85,'LISTE DES TIREURS'!F168) -> 0 | F160: 1
A161: 87 | D161: =INDEX('LISTE DES TIREURS'!E$83:E$85,'LISTE DES TIREURS'!F169) -> 0 | F161: 1
A162: 88 | D162: =INDEX('LISTE DES TIREURS'!E$83:E$85,'LISTE DES TIREURS'!F170) -> 0 | F162: 1
A163: 89 | D163: =INDEX('LISTE DES TIREURS'!E$83:E$85,'LISTE DES TIREURS'!F171) -> 0 | F163: 1
A164: 90 | D164: =INDEX('LISTE DES TIREURS'!E$83:E$85,'LISTE DES TIREURS'!F172) -> 0 | F164: 1
A165: 91 | D165: =INDEX('LISTE DES TIREURS'!E$83:E$85,'LISTE DES TIREURS'!F173) -> 0 | F165: 1
A166: 92 | D166: =INDEX('LISTE DES TIREURS'!E$83:E$85,'LISTE DES TIREURS'!F174) -> 0 | F166: 1
A167: 93 | D167: =INDEX('LISTE DES TIREURS'!E$83:E$85,'LISTE DES TIREURS'!F175) -> 0 | F167: 1
A168: 94 | D168: =INDEX('LISTE DES TIREURS'!E$83:E$85,'LISTE DES TIREURS'!F176) -> 0 | F168: 1
A169: 95 | D169: =INDEX('LISTE DES TIREURS'!E$83:E$85,'LISTE DES TIREURS'!F177) -> 0 | F169: 1
A170: 96 | D170: =INDEX('LISTE DES TIREURS'!E$83:E$85,'LISTE DES TIREURS'!F178) -> 0 | F170: 1
A171: 97 | D171: =INDEX('LISTE DES TIREURS'!E$83:E$85,'LISTE DES TIREURS'!F179) -> 0 | F171: 1
A172: 98 | D172: =INDEX('LISTE DES TIREURS'!E$83:E$85,'LISTE DES TIREURS'!F180) -> 0 | F172: 1
A173: 99 | D173: =INDEX('LISTE DES TIREURS'!E$83:E$85,'LISTE DES TIREURS'!F181) -> 0 | F173: 1
A174: 100 | D174: =INDEX('LISTE DES TIREURS'!E$83:E$85,'LISTE DES TIREURS'!F182) -> 0 | F174: 1
A175: 101 | D175: =INDEX('LISTE DES TIREURS'!E$83:E$85,'LISTE DES TIREURS'!F183) -> 0 | F175: 1
A176: 102 | D176: =INDEX('LISTE DES TIREURS'!E$83:E$85,'LISTE DES TIREURS'!F184) -> 0 | F176: 1
A177: 103 | D177: =INDEX('LISTE DES TIREURS'!E$83:E$85,'LISTE DES TIREURS'!F185) -> 0 | F177: 1
A178: 104 | D178: =INDEX('LISTE DES TIREURS'!E$83:E$85,'LISTE DES TIREURS'!F186) -> 0 | F178: 1
A179: 105 | D179: =INDEX('LISTE DES TIREURS'!E$83:E$85,'LISTE DES TIREURS'!F187) -> 0 | F179: 1
A180: 106 | D180: =INDEX('LISTE DES TIREURS'!E$83:E$85,'LISTE DES TIREURS'!F188) -> 0 | F180: 1
A181: 107 | D181: =INDEX('LISTE DES TIREURS'!E$83:E$85,'LISTE DES TIREURS'!F189) -> 0 | F181: 1
A182: 108 | D182: =INDEX('LISTE DES TIREURS'!E$83:E$85,'LISTE DES TIREURS'!F190) -> 0 | F182: 1
A183: 109 | D183: =INDEX('LISTE DES TIREURS'!E$83:E$85,'LISTE DES TIREURS'!F191) -> 0 | F183: 1
A184: 110 | D184: =INDEX('LISTE DES TIREURS'!E$83:E$85,'LISTE DES TIREURS'!F192) -> 0 | F184: 1
A185: 111 | D185: =INDEX('LISTE DES TIREURS'!E$83:E$85,'LISTE DES TIREURS'!F193) -> 0 | F185: 1
A186: 112 | D186: =INDEX('LISTE DES TIREURS'!E$83:E$85,'LISTE DES TIREURS'!F194) -> 0 | F186: 1
A187: 113 | D187: =INDEX('LISTE DES TIREURS'!E$83:E$85,'LISTE DES TIREURS'!F195) -> 0 | F187: 1
A188: 114 | D188: =INDEX('LISTE DES TIREURS'!E$83:E$85,'LISTE DES TIREURS'!F196) -> 0 | F188: 1
A189: 115 | D189: =INDEX('LISTE DES TIREURS'!E$83:E$85,'LISTE DES TIREURS'!F197) -> 0 | F189: 1
A190: 116 | D190: =INDEX('LISTE DES TIREURS'!E$83:E$85,'LISTE DES TIREURS'!F198) -> 0 | F190: 1
A191: 117 | D191: =INDEX('LISTE DES TIREURS'!E$83:E$85,'LISTE DES TIREURS'!F199) -> 0 | F191: 1
A192: 118 | D192: =INDEX('LISTE DES TIREURS'!E$83:E$85,'LISTE DES TIREURS'!F200) -> 0 | F192: 1
A193: 119 | D193: =INDEX('LISTE DES TIREURS'!E$83:E$85,'LISTE DES TIREURS'!F201) -> 0 | F193: 1
A194: 120 | D194: =INDEX('LISTE DES TIREURS'!E$83:E$85,'LISTE DES TIREURS'!F202) -> 0 | F194: 1
F195: 1
F196: 1
F197: 1
F198: 1
F199: 1
F200: 1
F201: 1
F202: 1

Sheet FEUILLE D'INSCRIPTION
A1: ANNEE - JAHR | E1: CATEGORIE | F1: Entreprise | I1: ='LISTE DES TIREURS'!D2 -> 2023 | O1: Participation au tir | S1: 5
A2: ='LISTE DES TIREURS'!$D$2-59 -> 1964 | B2: à | C2: ='LISTE DES TIREURS'!$D$2-20 -> 2003 | D2: = | E2: Elite Dame | F2: J.-C.S.SCIAGE SA | X2: A envoyer à :
F3: Catégorie : | G3: C | H3: Equipe | I3: 73 | J3: N° de groupe | O3: Teilnahme Schießen | X3: hubert.thiemard@tir-interusines.ch
A4: ='LISTE DES TIREURS'!$D$2-69 -> 1954 | B4: à | C4: ='LISTE DES TIREURS'!$D$2-60 -> 1963 | D4: = | E4: Vétéran Dame Vétéran | F4: Liste des tireurs | K4: N° d'équipe | M4: Catégorie 2 | R4: Tireur à double
F5: Nom prénom | G5: Année nais. | H5: Catégorie 1 | I5: Nom de groupe | L5: Entreprise - Firma | N5: Arme | O5: Séance
A6: < | B6: ='LISTE DES TIREURS'!$D$2-70 -> 1953 | D6: = | E6: Sénior Vétéran | F6: Name Vorname | G6: Geburtsjahr | I6: Gruppe | N6: Waffe | O6: 1e VE | P6: 2e SA | Q6: 3e SA
A7: ='LISTE DES TIREURS'!$D$2-19 -> 2004 | B7: à | C7: ='LISTE DES TIREURS'!$D$2-17 -> 2006 | D7: = | E7: Junior Junior Dame | F7: =INDEX('LISTE DES TIREURS'!B$74:B$194,'FEUILLE D''INSCRIPTION'!S7) -> SUDAN GERALDINE | G7: =INDEX('LISTE DES TIREURS'!C$74:C$194,'FEUILLE D''INSCRIPTION'!S7) -> 1989 | H7: =INDEX('FEUILLE D''INSCRIPTION'!U$7:U$15,'FEUILLE D''INSCRIPTION'!T7) -> DAME | I7: =INDEX('LISTE DES TIREURS'!G$8:G$82,'FEUILLE D''INSCRIPTION'!V7) -> MITES A BETON 1 | J7: =INDEX('LISTE DES TIREURS'!F$8:F$82,'FEUILLE D''INSCRIPTION'!V7) -> 0 | K7: =IF(F7>0,$I$3,"") -> 73 | L7: =IF(F7>0,$F$2,"") -> J.-C.S.SCIAGE SA | M7: =IF(F7>0,$G$3,"") -> C | N7: =INDEX('LISTE DES TIREURS'!D$74:D$194,'FEUILLE D''INSCRIPTION'!S7) -> F90 | R7: =IF(S7=1,"",COUNTIFS($S$7:$S$181,S7)) -> 1 | S7: 6 | T7: 5 | V7: 3
F8: =INDEX('LISTE DES TIREURS'!B$74:B$194,'FEUILLE D''INSCRIPTION'!S8) -> SUDAN MURIELLE | G8: =INDEX('LISTE DES TIREURS'!C$74:C$194,'FEUILLE D''INSCRIPTION'!S8) -> 1962 | H8: =INDEX('FEUILLE D''INSCRIPTION'!U$7:U$15,'FEUILLE D''INSCRIPTION'!T8) -> ELITE | I8: =INDEX('LISTE DES TIREURS'!G$8:G$82,'FEUILLE D''INSCRIPTION'!V8) -> MITES A BETON 1 | J8: =INDEX('LISTE DES TIREURS'!F$8:F$82,'FEUILLE D''INSCRIPTION'!V8) -> 0 | K8: =IF(F8>0,$I$3,"") -> 73 | L8: =IF(F8>0,$F$2,"") -> J.-C.S.SCIAGE SA | M8: =IF(F8>0,$G$3,"") -> C | N8: =INDEX('LISTE DES TIREURS'!D$74:D$194,'FEUILLE D''INSCRIPTION'!S8) -> F90 | R8: 1 | S8: 8 | T8: 2 | U8: ELITE | V8: 3
A9: ='LISTE DES TIREURS'!$D$2-16 -> 2007 | B9: à | C9: ='LISTE DES TIREURS'!$D$2-10 -> 2013 | D9: = | E9: Adolescent | F9: =INDEX('LISTE DES TIREURS'!B$74:B$194,'FEUILLE D''INSCRIPTION'!S9) -> SUDAN JEAN-CLAUDE | G9: =INDEX('LISTE DES TIREURS'!C$74:C$194,'FEUILLE D''INSCRIPTION'!S9) -> 1959 | H9: =INDEX('FEUILLE D''INSCRIPTION'!U$7:U$15,'FEUILLE D''INSCRIPTION'!T9) -> VETERAN | I9: =INDEX('LISTE DES TIREURS'!G$8:G$82,'FEUILLE D''INSCRIPTION'!V9) -> MITES A BETON 1 | J9: =INDEX('LISTE DES TIREURS'!F$8:F$82,'FEUILLE D''INSCRIPTION'!V9) -> 0 | K9: 73 | L9: J.-C.S.SCIAGE SA | M9: C | N9: =INDEX('LISTE DES TIREURS'!D$74:D$194,'FEUILLE D''INSCRIPTION'!S9) -> F57 / M | R9: =IF(S9=1,"",COUNTIFS($S$7:$S$181,S9)) -> 1 | S9: 7 | T9: 3 | U9: VETERAN | V9: 3
F10: =INDEX('LISTE DES TIREURS'!B$74:B$194,'FEUILLE D''INSCRIPTION'!S10) -> 0 | G10: =INDEX('LISTE DES TIREURS'!C$74:C$194,'FEUILLE D''INSCRIPTION'!S10) -> 0 | H10: =INDEX('FEUILLE D''INSCRIPTION'!U$7:U$15,'FEUILLE D''INSCRIPTION'!T10) -> VETERAN | I10: =INDEX('LISTE DES TIREURS'!G$8:G$82,'FEUILLE D''INSCRIPTION'!V10) -> MITES A BETON 1 | J10: =INDEX('LISTE DES TIREURS'!F$8:F$82,'FEUILLE D''INSCRIPTION'!V10) -> 0 | N10: =INDEX('LISTE DES TIREURS'!D$74:D$194,'FEUILLE D''INSCRIPTION'!S10) -> 0 | R10: =IF(S10=1,"",COUNTIFS($S$7:$S$181,S10)) -> 1 | S10: 13 | T10: 3 | U10: SENIOR VETERAN | V10: 3
F11: =INDEX('LISTE DES TIREURS'!B$74:B$194,'FEUILLE D''INSCRIPTION'!S11) -> 0 | G11: =INDEX('LISTE DES TIREURS'!C$74:C$194,'FEUILLE D''INSCRIPTION'!S11) -> 0 | H11: =INDEX('FEUILLE D''INSCRIPTION'!U$7:U$15,'FEUILLE D''INSCRIPTION'!T11) -> DAME | I11: =INDEX('LISTE DES TIREURS'!G$8:G$82,'FEUILLE D''INSCRIPTION'!V11) -> MITES A BETON 1 | J11: =INDEX('LISTE DES TIREURS'!F$8:F$82,'FEUILLE D''INSCRIPTION'!V11) -> 0 | K11: =IF(F11>0,$I$3,"") ->  | N11: =INDEX('LISTE DES TIREURS'!D$74:D$194,'FEUILLE D''INSCRIPTION'!S11) -> 0 | R11: 1 | S11: 14 | T11: 5 | U11: DAME | V11: 3
U12: DAME VETERAN
F13: =INDEX('LISTE DES TIREURS'!B$74:B$194,'FEUILLE D''INSCRIPTION'!S13) -> PIATEK MATEUSZ | G13: =INDEX('LISTE DES TIREURS'!C$74:C$194,'FEUILLE D''INSCRIPTION'!S13) -> 1991 | H13: =INDEX('FEUILLE D''INSCRIPTION'!U$7:U$15,'FEUILLE D''INSCRIPTION'!T13) -> ELITE | I13: =INDEX('LISTE DES TIREURS'!G$8:G$82,'FEUILLE D''INSCRIPTION'!V13) -> MITES A BETON 2 | J13: =INDEX('LISTE DES TIREURS'!F$8:F$82,'FEUILLE D''INSCRIPTION'!V13) -> 0 | K13: 73 | L13: J.-C.S.SCIAGE SA | M13: C | N13: =INDEX('LISTE DES TIREURS'!D$74:D$194,'FEUILLE D''INSCRIPTION'!S13) -> F57 / M | R13: =IF(S13=1,"",COUNTIFS($S$7:$S$181,S13)) -> 1 | S13: 2 | T13: 2 | U13: JUNIOR | V13: 4
F14: =INDEX('LISTE DES TIREURS'!B$74:B$194,'FEUILLE D''INSCRIPTION'!S14) -> RIESEN YVAN | G14: =INDEX('LISTE DES TIREURS'!C$74:C$194,'FEUILLE D''INSCRIPTION'!S14) -> 1989 | H14: =INDEX('FEUILLE D''INSCRIPTION'!U$7:U$15,'FEUILLE D''INSCRIPTION'!T14) -> ELITE | I14: =INDEX('LISTE DES TIREURS'!G$8:G$82,'FEUILLE D''INSCRIPTION'!V14) -> MITES A BETON 2 | J14: =INDEX('LISTE DES TIREURS'!F$8:F$82,'FEUILLE D''INSCRIPTION'!V14) -> 0 | K14: 73 | L14: J.-C.S.SCIAGE SA | M14: C | N14: =INDEX('LISTE DES TIREURS'!D$74:D$194,'FEUILLE D''INSCRIPTION'!S14) -> F90 | R14: 1 | S14: 4 | T14: 2 | U14: JUNIOR DAME | V14: 4
F15: =INDEX('LISTE DES TIREURS'!B$74:B$194,'FEUILLE D''INSCRIPTION'!S15) -> SUDAN ANGELIQUE | G15: =INDEX('LISTE DES TIREURS'!C$74:C$194,'FEUILLE D''INSCRIPTION'!S15) -> 1983 | H15: =INDEX('FEUILLE D''INSCRIPTION'!U$7:U$15,'FEUILLE D''INSCRIPTION'!T15) -> ELITE | I15: =INDEX('LISTE DES TIREURS'!G$8:G$82,'FEUILLE D''INSCRIPTION'!V15) -> MITES A BETON 2 | J15: =INDEX('LISTE DES TIREURS'!F$8:F$82,'FEUILLE D''INSCRIPTION'!V15) -> 0 | K15: 73 | L15: J.-C.S.SCIAGE SA | M15: C | N15: =INDEX('LISTE DES TIREURS'!D$74:D$194,'FEUILLE D''INSCRIPTION'!S15) -> F90 | R15: =IF(S15=1,"",COUNTIFS($S$7:$S$181,S15)) -> 1 | S15: 5 | T15: 2 | U15: ADOLESCENT | V15: 4
F16: =INDEX('LISTE DES TIREURS'!B$74:B$194,'FEUILLE D''INSCRIPTION'!S16) -> THEVENAZ NICOLAS | G16: =INDEX('LISTE DES TIREURS'!C$74:C$194,'FEUILLE D''INSCRIPTION'!S16) -> 1989 | H16: =INDEX('FEUILLE D''INSCRIPTION'!U$7:U$15,'FEUILLE D''INSCRIPTION'!T16) -> DAME | I16: =INDEX('LISTE DES TIREURS'!G$8:G$82,'FEUILLE D''INSCRIPTION'!V16) -> MITES A BETON 2 | J16: =INDEX('LISTE DES TIREURS'!F$8:F$82,'FEUILLE D''INSCRIPTION'!V16) -> 0 | K16: 73 | L16: J.-C.S.SCIAGE SA | M16: C | N16: =INDEX('LISTE DES TIREURS'!D$74:D$194,'FEUILLE D''INSCRIPTION'!S16) -> F90 | R16: =IF(S16=1,"",COUNTIFS($S$7:$S$181,S16)) -> 1 | S16: 9 | T16: 5 | V16: 4
F17: =INDEX('LISTE DES TIREURS'!B$74:B$194,'FEUILLE D''INSCRIPTION'!S17) -> 0 | G17: =INDEX('LISTE DES TIREURS'!C$74:C$194,'FEUILLE D''INSCRIPTION'!S17) -> 0 | H17: =INDEX('FEUILLE D''INSCRIPTION'!U$7:U$15,'FEUILLE D''INSCRIPTION'!T17) -> ELITE | I17: =INDEX('LISTE DES TIREURS'!G$8:G$82,'FEUILLE D''INSCRIPTION'!V17) -> MITES A BETON 2 | J17: =INDEX('LISTE DES TIREURS'!F$8:F$82,'FEUILLE D''INSCRIPTION'!V17) -> 0 | N17: =INDEX('LISTE DES TIREURS'!D$74:D$194,'FEUILLE D''INSCRIPTION'!S17) -> 0 | R17: 1 | S17: 10 | T17: 2 | V17: 4
F19: =INDEX('LISTE DES TIREURS'!B$74:B$194,'FEUILLE D''INSCRIPTION'!S19) -> PIATEK PAWEL | G19: =INDEX('LISTE DES TIREURS'!C$74:C$194,'FEUILLE D''INSCRIPTION'!S19) -> 1974 | H19: =INDEX('FEUILLE D''INSCRIPTION'!U$7:U$15,'FEUILLE D''INSCRIPTION'!T19) -> ELITE | I19: =INDEX('LISTE DES TIREURS'!G$8:G$82,'FEUILLE D''INSCRIPTION'!V19) -> INDIVIDUEL | J19: =INDEX('LISTE DES TIREURS'!F$8:F$82,'FEUILLE D''INSCRIPTION'!V19) -> 1 | K19: 73 | L19: J.-C.S.SCIAGE SA | M19: C | N19: =INDEX('LISTE DES TIREURS'!D$74:D$194,'FEUILLE D''INSCRIPTION'!S19) -> F57 / M | R19: =IF(S19=1,"",COUNTIFS($S$7:$S$181,S19)) -> 1 | S19: 3 | T19: 2 | V19: 2
F20: =INDEX('LISTE DES TIREURS'!B$74:B$194,'FEUILLE D''INSCRIPTION'!S20) -> 0 | G20: =INDEX('LISTE DES TIREURS'!C$74:C$194,'FEUILLE D''INSCRIPTION'!S20) -> 0 | H20: =INDEX('FEUILLE D''INSCRIPTION'!U$7:U$15,'FEUILLE D''INSCRIPTION'!T20) -> ELITE | I20: =INDEX('LISTE DES TIREURS'!G$8:G$82,'FEUILLE D''INSCRIPTION'!V20) -> INDIVIDUEL | J20: =INDEX('LISTE DES TIREURS'!F$8:F$82,'FEUILLE D''INSCRIPTION'!V20) -> 1 | N20: =INDEX('LISTE DES TIREURS'!D$74:D$194,'FEUILLE D''INSCRIPTION'!S20) -> 0 | R20: 1 | S20: 11 | T20: 2 | V20: 2
F21: =INDEX('LISTE DES TIREURS'!B$74:B$194,'FEUILLE D''INSCRIPTION'!S21) -> 0 | G21: =INDEX('LISTE DES TIREURS'!C$74:C$194,'FEUILLE D''INSCRIPTION'!S21) -> 0 | H21: =INDEX('FEUILLE D''INSCRIPTION'!U$7:U$15,'FEUILLE D''INSCRIPTION'!T21) -> ELITE | I21: =INDEX('LISTE DES TIREURS'!G$8:G$82,'FEUILLE D''INSCRIPTION'!V21) -> INDIVIDUEL | J21: =INDEX('LISTE DES TIREURS'!F$8:F$82,'FEUILLE D''INSCRIPTION'!V21) -> 1 | N21: =INDEX('LISTE DES TIREURS'!D$74:D$194,'FEUILLE D''INSCRIPTION'!S21) -> 0 | R21: =IF(S21=1,"",COUNTIFS($S$7:$S$181,S21)) -> 1 | S21: 15 | T21: 2 | V21: 2
F22: =INDEX('LISTE DES TIREURS'!B$74:B$194,'FEUILLE D''INSCRIPTION'!S22) -> 0 | G22: =INDEX('LISTE DES TIREURS'!C$74:C$194,'FEUILLE D''INSCRIPTION'!S22) -> 0 | H22: =INDEX('FEUILLE D''INSCRIPTION'!U$7:U$15,'FEUILLE D''INSCRIPTION'!T22) -> DAME | I22: =INDEX('LISTE DES TIREURS'!G$8:G$82,'FEUILLE D''INSCRIPTION'!V22) -> INDIVIDUEL | J22: =INDEX('LISTE DES TIREURS'!F$8:F$82,'FEUILLE D''INSCRIPTION'!V22) -> 1 | N22: =INDEX('LISTE DES TIREURS'!D$74:D$194,'FEUILLE D''INSCRIPTION'!S22) -> 0 | R22: =IF(S22=1,"",COUNTIFS($S$7:$S$181,S22)) -> 1 | S22: 12 | T22: 5 | V22: 2
F23: =INDEX('LISTE DES TIREURS'!B$74:B$194,'FEUILLE D''INSCRIPTION'!S23) -> 0 | G23: =INDEX('LISTE DES TIREURS'!C$74:C$194,'FEUILLE D''INSCRIPTION'!S23) -> 0 | H23: =INDEX('FEUILLE D''INSCRIPTION'!U$7:U$15,'FEUILLE D''INSCRIPTION'!T23) -> 0 | I23: =INDEX('LISTE DES TIREURS'!G$8:G$82,'FEUILLE D''INSCRIPTION'!V23) -> 0 | J23: =INDEX('LISTE DES TIREURS'!F$8:F$82,'FEUILLE D''INSCRIPTION'!V23) -> 0 | N23: =INDEX('LISTE DES TIREURS'!D$74:D$194,'FEUILLE D''INSCRIPTION'!S23) -> 0 | R23: 1 | S23: 20 | T23: 1 | V23: 5
F25: =INDEX('LISTE DES TIREURS'!B$74:B$194,'FEUILLE D''INSCRIPTION'!S25) -> 0 | G25: =INDEX('LISTE DES TIREURS'!C$74:C$194,'FEUILLE D''INSCRIPTION'!S25) -> 0 | H25: =INDEX('FEUILLE D''INSCRIPTION'!U$7:U$15,'FEUILLE D''INSCRIPTION'!T25) -> 0 | I25: =INDEX('LISTE DES TIREURS'!G$8:G$82,'FEUILLE D''INSCRIPTION'!V25) -> 0 | J25: =INDEX('LISTE DES TIREURS'!F$8:F$82,'FEUILLE D''INSCRIPTION'!V25) -> 0 | N25: =INDEX('LISTE DES TIREURS'!D$74:D$194,'FEUILLE D''INSCRIPTION'!S25) -> 0 | R25: =IF(S25=1,"",COUNTIFS($S$7:$S$181,S25)) ->  | S25: 1 | T25: 1 | V25: 6
F26: =INDEX('LISTE DES TIREURS'!B$74:B$194,'FEUILLE D''INSCRIPTION'!S26) -> 0 | G26: =INDEX('LISTE DES TIREURS'!C$74:C$194,'FEUILLE D''INSCRIPTION'!S26) -> 0 | H26: =INDEX('FEUILLE D''INSCRIPTION'!U$7:U$15,'FEUILLE D''INSCRIPTION'!T26) -> 0 | I26: =INDEX('LISTE DES TIREURS'!G$8:G$82,'FEUILLE D''INSCRIPTION'!V26) -> 0 | J26: =INDEX('LISTE DES TIREURS'!F$8:F$82,'FEUILLE D''INSCRIPTION'!V26) -> 0 | N26: =INDEX('LISTE DES TIREURS'!D$74:D$194,'FEUILLE D''INSCRIPTION'!S26) -> 0 | R26: 1 | S26: 28 | T26: 1 | V26: 6
F27: =INDEX('LISTE DES TIREURS'!B$74:B$194,'FEUILLE D''INSCRIPTION'!S27) -> 0 | G27: =INDEX('LISTE DES TIREURS'!C$74:C$194,'FEUILLE D''INSCRIPTION'!S27) -> 0 | H27: =INDEX('FEUILLE D''INSCRIPTION'!U$7:U$15,'FEUILLE D''INSCRIPTION'!T27) -> 0 | I27: =INDEX('LISTE DES TIREURS'!G$8:G$82,'FEUILLE D''INSCRIPTION'!V27) -> 0 | J27: =INDEX('LISTE DES TIREURS'!F$8:F$82,'FEUILLE D''INSCRIPTION'!V27) -> 0 | N27: =INDEX('LISTE DES TIREURS'!D$74:D$194,'FEUILLE D''INSCRIPTION'!S27) -> 0 | R27: =IF(S27=1,"",COUNTIFS($S$7:$S$181,S27)) -> 1 | S27: 19 | T27: 1 | V27: 6
F28: =INDEX('LISTE DES TIREURS'!B$74:B$194,'FEUILLE D''INSCRIPTION'!S28) -> 0 | G28: =INDEX('LISTE DES TIREURS'!C$74:C$194,'FEUILLE D''INSCRIPTION'!S28) -> 0 | H28: =INDEX('FEUILLE D''INSCRIPTION'!U$7:U$15,'FEUILLE D''INSCRIPTION'!T28) -> 0 | I28: =INDEX('LISTE DES TIREURS'!G$8:G$82,'FEUILLE D''INSCRIPTION'!V28) -> 0 | J28: =INDEX('LISTE DES TIREURS'!F$8:F$82,'FEUILLE D''INSCRIPTION'!V28) -> 0 | N28: =INDEX('LISTE DES TIREURS'!D$74:D$194,'FEUILLE D''INSCRIPTION'!S28) -> 0 | R28: =IF(S28=1,"",COUNTIFS($S$7:$S$181,S28)) -> 1 | S28: 25 | T28: 1 | V28: 6
F29: =INDEX('LISTE DES TIREURS'!B$74:B$194,'FEUILLE D''INSCRIPTION'!S29) -> 0 | G29: =INDEX('LISTE DES TIREURS'!C$74:C$194,'FEUILLE D''INSCRIPTION'!S29) -> 0 | H29: =INDEX('FEUILLE D''INSCRIPTION'!U$7:U$15,'FEUILLE D''INSCRIPTION'!T29) -> 0 | I29: =INDEX('LISTE DES TIREURS'!G$8:G$82,'FEUILLE D''INSCRIPTION'!V29) -> 0 | J29: =INDEX('LISTE DES TIREURS'!F$8:F$82,'FEUILLE D''INSCRIPTION'!V29) -> 0 | N29: =INDEX('LISTE DES TIREURS'!D$74:D$194,'FEUILLE D''INSCRIPTION'!S29) -> 0 | R29: 1 | S29: 27 | T29: 1 | V29: 6
F31: =INDEX('LISTE DES TIREURS'!B$74:B$194,'FEUILLE D''INSCRIPTION'!S31) -> 0 | G31: =INDEX('LISTE DES TIREURS'!C$74:C$194,'FEUILLE D''INSCRIPTION'!S31) -> 0 | H31: =INDEX('FEUILLE D''INSCRIPTION'!U$7:U$15,'FEUILLE D''INSCRIPTION'!T31) -> 0 | I31: =INDEX('LISTE DES TIREURS'!G$8:G$82,'FEUILLE D''INSCRIPTION'!V31) -> 0 | J31: =INDEX('LISTE DES TIREURS'!F$8:F$82,'FEUILLE D''INSCRIPTION'!V31) -> 0 | N31: =INDEX('LISTE DES TIREURS'!D$74:D$194,'FEUILLE D''INSCRIPTION'!S31) -> 0 | R31: =IF(S31=1,"",COUNTIFS($S$7:$S$181,S31)) -> 1 | S31: 22 | T31: 1 | V31: 7
F32: =INDEX('LISTE DES TIREURS'!B$74:B$194,'FEUILLE D''INSCRIPTION'!S32) -> 0 | G32: =INDEX('LISTE DES TIREURS'!C$74:C$194,'FEUILLE D''INSCRIPTION'!S32) -> 0 | H32: =INDEX('FEUILLE D''INSCRIPTION'!U$7:U$15,'FEUILLE D''INSCRIPTION'!T32) -> 0 | I32: =INDEX('LISTE DES TIREURS'!G$8:G$82,'FEUILLE D''INSCRIPTION'!V32) -> 0 | J32: =INDEX('LISTE DES TIREURS'!F$8:F$82,'FEUILLE D''INSCRIPTION'!V32) -> 0 | N32: =INDEX('LISTE DES TIREURS'!D$74:D$194,'FEUILLE D''INSCRIPTION'!S32) -> 0 | S32: 1 | T32: 1 | V32: 7
F33: =INDEX('LISTE DES TIREURS'!B$74:B$194,'FEUILLE D''INSCRIPTION'!S33) -> 0 | G33: =INDEX('LISTE DES TIREURS'!C$74:C$194,'FEUILLE D''INSCRIPTION'!S33) -> 0 | H33: =INDEX('FEUILLE D''INSCRIPTION'!U$7:U$15,'FEUILLE D''INSCRIPTION'!T33) -> 0 | I33: =INDEX('LISTE DES TIREURS'!G$8:G$82,'FEUILLE D''INSCRIPTION'!V33) -> 0 | J33: =INDEX('LISTE DES TIREURS'!F$8:F$82,'FEUILLE D''INSCRIPTION'!V33) -> 0 | N33: =INDEX('LISTE DES TIREURS'!D$74:D$194,'FEUILLE D''INSCRIPTION'!S33) -> 0 | R33: =IF(S33=1,"",COUNTIFS($S$7:$S$181,S33)) -> 1 | S33: 18 | T33: 1 | V33: 7
F34: =INDEX('LISTE DES TIREURS'!B$74:B$194,'FEUILLE D''INSCRIPTION'!S34) -> 0 | G34: =INDEX('LISTE DES TIREURS'!C$74:C$194,'FEUILLE D''INSCRIPTION'!S34) -> 0 | H34: =INDEX('FEUILLE D''INSCRIPTION'!U$7:U$15,'FEUILLE D''INSCRIPTION'!T34) -> 0 | I34: =INDEX('LISTE DES TIREURS'!G$8:G$82,'FEUILLE D''INSCRIPTION'!V34) -> 0 | J34: =INDEX('LISTE DES TIREURS'!F$8:F$82,'FEUILLE D''INSCRIPTION'!V34) -> 0 | N34: =INDEX('LISTE DES TIREURS'!D$74:D$194,'FEUILLE D''INSCRIPTION'!S34) -> 0 | R34: =IF(S34=1,"",COUNTIFS($S$7:$S$181,S34)) -> 1 | S34: 16 | T34: 1 | V34: 7
F35: =INDEX('LISTE DES TIREURS'!B$74:B$194,'FEUILLE D''INSCRIPTION'!S35) -> 0 | G35: =INDEX('LISTE DES TIREURS'!C$74:C$194,'FEUILLE D''INSCRIPTION'!S35) -> 0 | H35: =INDEX('FEUILLE D''INSCRIPTION'!U$7:U$15,'FEUILLE D''INSCRIPTION'!T35) -> 0 | I35: =INDEX('LISTE DES TIREURS'!G$8:G$82,'FEUILLE D''INSCRIPTION'!V35) -> 0 | J35: =INDEX('LISTE DES TIREURS'!F$8:F$82,'FEUILLE D''INSCRIPTION'!V35) -> 0 | N35: =INDEX('LISTE DES TIREURS'!D$74:D$194,'FEUILLE D''INSCRIPTION'!S35) -> 0 | R35: 1 | S35: 17 | T35: 1 | V35: 7
F37: =INDEX('LISTE DES TIREURS'!B$74:B$194,'FEUILLE D''INSCRIPTION'!S37) -> 0 | G37: =INDEX('LISTE DES TIREURS'!C$74:C$194,'FEUILLE D''INSCRIPTION'!S37) -> 0 | H37: =INDEX('FEUILLE D''INSCRIPTION'!U$7:U$15,'FEUILLE D''INSCRIPTION'!T37) -> 0 | I37: =INDEX('LISTE DES TIREURS'!G$8:G$82,'FEUILLE D''INSCRIPTION'!V37) -> 0 | J37: =INDEX('LISTE DES TIREURS'!F$8:F$82,'FEUILLE D''INSCRIPTION'!V37) -> 0 | N37: =INDEX('LISTE DES TIREURS'!D$74:D$194,'FEUILLE D''INSCRIPTION'!S37) -> 0 | R37: =IF(S37=1,"",COUNTIFS($S$7:$S$181,S37)) ->  | S37: 1 | T37: 1 | V37: 1
F38: =INDEX('LISTE DES TIREURS'!B$74:B$194,'FEUILLE D''INSCRIPTION'!S38) -> 0 | G38: =INDEX('LISTE DES TIREURS'!C$74:C$194,'FEUILLE D''INSCRIPTION'!S38) -> 0 | H38: =INDEX('FEUILLE D''INSCRIPTION'!U$7:U$15,'FEUILLE D''INSCRIPTION'!T38) -> 0 | I38: =INDEX('LISTE DES TIREURS'!G$8:G$82,'FEUILLE D''INSCRIPTION'!V38) -> 0 | J38: =INDEX('LISTE DES TIREURS'!F$8:F$82,'FEUILLE D''INSCRIPTION'!V38) -> 0 | N38: =INDEX('LISTE DES TIREURS'!D$74:D$194,'FEUILLE D''INSCRIPTION'!S38) -> 0 | S38: 1 | T38: 1 | V38: 1
F39: =INDEX('LISTE DES TIREURS'!B$74:B$194,'FEUILLE D''INSCRIPTION'!S39) -> 0 | G39: =INDEX('LISTE DES TIREURS'!C$74:C$194,'FEUILLE D''INSCRIPTION'!S39) -> 0 | H39: =INDEX('FEUILLE D''INSCRIPTION'!U$7:U$15,'FEUILLE D''INSCRIPTION'!T39) -> 0 | I39: =INDEX('LISTE DES TIREURS'!G$8:G$82,'FEUILLE D''INSCRIPTION'!V39) -> 0 | J39: =INDEX('LISTE DES TIREURS'!F$8:F$82,'FEUILLE D''INSCRIPTION'!V39) -> 0 | N39: =INDEX('LISTE DES TIREURS'!D$74:D$194,'FEUILLE D''INSCRIPTION'!S39) -> 0 | R39: =IF(S39=1,"",COUNTIFS($S$7:$S$181,S39)) -> 1 | S39: 32 | T39: 1 | V39: 1
F40: =INDEX('LISTE DES TIREURS'!B$74:B$194,'FEUILLE D''INSCRIPTION'!S40) -> 0 | G40: =INDEX('LISTE DES TIREURS'!C$74:C$194,'FEUILLE D''INSCRIPTION'!S40) -> 0 | H40: =INDEX('FEUILLE D''INSCRIPTION'!U$7:U$15,'FEUILLE D''INSCRIPTION'!T40) -> 0 | I40: =INDEX('LISTE DES TIREURS'!G$8:G$82,'FEUILLE D''INSCRIPTION'!V40) -> 0 | J40: =INDEX('LISTE DES TIREURS'!F$8:F$82,'FEUILLE D''INSCRIPTION'!V40) -> 0 | N40: =INDEX('LISTE DES TIREURS'!D$74:D$194,'FEUILLE D''INSCRIPTION'!S40) -> 0 | R40: =IF(S40=1,"",COUNTIFS($S$7:$S$181,S40)) -> 1 | S40: 33 | T40: 1 | V40: 1
F41: =INDEX('LISTE DES TIREURS'!B$74:B$194,'FEUILLE D''INSCRIPTION'!S41) -> 0 | G41: =INDEX('LISTE DES TIREURS'!C$74:C$194,'FEUILLE D''INSCRIPTION'!S41) -> 0 | H41: =INDEX('FEUILLE D''INSCRIPTION'!U$7:U$15,'FEUILLE D''INSCRIPTION'!T41) -> 0 | I41: =INDEX('LISTE DES TIREURS'!G$8:G$82,'FEUILLE D''INSCRIPTION'!V41) -> 0 | J41: =INDEX('LISTE DES TIREURS'!F$8:F$82,'FEUILLE D''INSCRIPTION'!V41) -> 0 | N41: =INDEX('LISTE DES TIREURS'!D$74:D$194,'FEUILLE D''INSCRIPTION'!S41) -> 0 | R41: 1 | S41: 30 | T41: 1 | V41: 1
F43: =INDEX('LISTE DES TIREURS'!B$74:B$194,'FEUILLE D''INSCRIPTION'!S43) -> 0 | G43: =INDEX('LISTE DES TIREURS'!C$74:C$194,'FEUILLE D''INSCRIPTION'!S43) -> 0 | H43: =INDEX('FEUILLE D''INSCRIPTION'!U$7:U$15,'FEUILLE D''INSCRIPTION'!T43) -> 0 | I43: =INDEX('LISTE DES TIREURS'!G$8:G$82,'FEUILLE D''INSCRIPTION'!V43) -> 0 | J43: =INDEX('LISTE DES TIREURS'!F$8:F$82,'FEUILLE D''INSCRIPTION'!V43) -> 0 | N43: =INDEX('LISTE DES TIREURS'!D$74:D$194,'FEUILLE D''INSCRIPTION'!S43) -> 0 | R43: =IF(S43=1,"",COUNTIFS($S$7:$S$181,S43)) -> 1 | S43: 37 | T43: 1 | V43: 1
F44: =INDEX('LISTE DES TIREURS'!B$74:B$194,'FEUILLE D''INSCRIPTION'!S44) -> 0 | G44: =INDEX('LISTE DES TIREURS'!C$74:C$194,'FEUILLE D''INSCRIPTION'!S44) -> 0 | H44: =INDEX('FEUILLE D''INSCRIPTION'!U$7:U$15,'FEUILLE D''INSCRIPTION'!T44) -> 0 | I44: =INDEX('LISTE DES TIREURS'!G$8:G$82,'FEUILLE D''INSCRIPTION'!V44) -> 0 | J44: =INDEX('LISTE DES TIREURS'!F$8:F$82,'FEUILLE D''INSCRIPTION'!V44) -> 0 | N44: =INDEX('LISTE DES TIREURS'!D$74:D$194,'FEUILLE D''INSCRIPTION'!S44) -> 0 | S44: 1 | T44: 1 | V44: 1
F45: =INDEX('LISTE DES TIREURS'!B$74:B$194,'FEUILLE D''INSCRIPTION'!S45) -> 0 | G45: =INDEX('LISTE DES TIREURS'!C$74:C$194,'FEUILLE D''INSCRIPTION'!S45) -> 0 | H45: =INDEX('FEUILLE D''INSCRIPTION'!U$7:U$15,'FEUILLE D''INSCRIPTION'!T45) -> 0 | I45: =INDEX('LISTE DES TIREURS'!G$8:G$82,'FEUILLE D''INSCRIPTION'!V45) -> 0 | J45: =INDEX('LISTE DES TIREURS'!F$8:F$82,'FEUILLE D''INSCRIPTION'!V45) -> 0 | N45: =INDEX('LISTE DES TIREURS'!D$74:D$194,'FEUILLE D''INSCRIPTION'!S45) -> 0 | R45: =IF(S45=1,"",COUNTIFS($S$7:$S$181,S45)) ->  | S45: 1 | T45: 1 | V45: 1
F46: =INDEX('LISTE DES TIREURS'!B$74:B$194,'FEUILLE D''INSCRIPTION'!S46) -> 0 | G46: =INDEX('LISTE DES TIREURS'!C$74:C$194,'FEUILLE D''INSCRIPTION'!S46) -> 0 | H46: =INDEX('FEUILLE D''INSCRIPTION'!U$7:U$15,'FEUILLE D''INSCRIPTION'!T46) -> 0 | I46: =INDEX('LISTE DES TIREURS'!G$8:G$82,'FEUILLE D''INSCRIPTION'!V46) -> 0 | J46: =INDEX('LISTE DES TIREURS'!F$8:F$82,'FEUILLE D''INSCRIPTION'!V46) -> 0 | N46: =INDEX('LISTE DES TIREURS'!D$74:D$194,'FEUILLE D''INSCRIPTION'!S46) -> 0 | R46: =IF(S46=1,"",COUNTIFS($S$7:$S$181,S46)) ->  | S46: 1 | T46: 1 | V46: 1
F47: =INDEX('LISTE DES TIREURS'!B$74:B$194,'FEUILLE D''INSCRIPTION'!S47) -> 0 | G47: =INDEX('LISTE DES TIREURS'!C$74:C$194,'FEUILLE D''INSCRIPTION'!S47) -> 0 | H47: =INDEX('FEUILLE D''INSCRIPTION'!U$7:U$15,'FEUILLE D''INSCRIPTION'!T47) -> 0 | I47: =INDEX('LISTE DES TIREURS'!G$8:G$82,'FEUILLE D''INSCRIPTION'!V47) -> 0 | J47: =INDEX('LISTE DES TIREURS'!F$8:F$82,'FEUILLE D''INSCRIPTION'!V47) -> 0 | N47: =INDEX('LISTE DES TIREURS'!D$74:D$194,'FEUILLE D''INSCRIPTION'!S47) -> 0 | S47: 1 | T47: 1 | V47: 1
F49: =INDEX('LISTE DES TIREURS'!B$74:B$194,'FEUILLE D''INSCRIPTION'!S49) -> 0 | G49: =INDEX('LISTE DES TIREURS'!C$74:C$194,'FEUILLE D''INSCRIPTION'!S49) -> 0 | H49: =INDEX('FEUILLE D''INSCRIPTION'!U$7:U$15,'FEUILLE D''INSCRIPTION'!T49) -> 0 | I49: =INDEX('LISTE DES TIREURS'!G$8:G$82,'FEUILLE D''INSCRIPTION'!V49) -> 0 | J49: =INDEX('LISTE DES TIREURS'!F$8:F$82,'FEUILLE D''INSCRIPTION'!V49) -> 0 | N49: =INDEX('LISTE DES TIREURS'!D$74:D$194,'FEUILLE D''INSCRIPTION'!S49) -> 0 | R49: =IF(S49=1,"",COUNTIFS($S$7:$S$181,S49)) ->  | S49: 1 | T49: 1 | V49: 12
F50: =INDEX('LISTE DES TIREURS'!B$74:B$194,'FEUILLE D''INSCRIPTION'!S50) -> 0 | G50: =INDEX('LISTE DES TIREURS'!C$74:C$194,'FEUILLE D''INSCRIPTION'!S50) -> 0 | H50: =INDEX('FEUILLE D''INSCRIPTION'!U$7:U$15,'FEUILLE D''INSCRIPTION'!T50) -> 0 | I50: =INDEX('LISTE DES TIREURS'!G$8:G$82,'FEUILLE D''INSCRIPTION'!V50) -> 0 | J50: =INDEX('LISTE DES TIREURS'!F$8:F$82,'FEUILLE D''INSCRIPTION'!V50) -> 0 | N50: =INDEX('LISTE DES TIREURS'!D$74:D$194,'FEUILLE D''INSCRIPTION'!S50) -> 0 | S50: 1 | T50: 1 | V50: 12
F51: =INDEX('LISTE DES TIREURS'!B$74:B$194,'FEUILLE D''INSCRIPTION'!S51) -> 0 | G51: =INDEX('LISTE DES TIREURS'!C$74:C$194,'FEUILLE D''INSCRIPTION'!S51) -> 0 | H51: =INDEX('FEUILLE D''INSCRIPTION'!U$7:U$15,'FEUILLE D''INSCRIPTION'!T51) -> 0 | I51: =INDEX('LISTE DES TIREURS'!G$8:G$82,'FEUILLE D''INSCRIPTION'!V51) -> 0 | J51: =INDEX('LISTE DES TIREURS'!F$8:F$82,'FEUILLE D''INSCRIPTION'!V51) -> 0 | N51: =INDEX('LISTE DES TIREURS'!D$74:D$194,'FEUILLE D''INSCRIPTION'!S51) -> 0 | R51: =IF(S51=1,"",COUNTIFS($S$7:$S$181,S51)) ->  | S51: 1 | T51: 1 | V51: 12
F52: =INDEX('LISTE DES TIREURS'!B$74:B$194,'FEUILLE D''INSCRIPTION'!S52) -> 0 | G52: =INDEX('LISTE DES TIREURS'!C$74:C$194,'FEUILLE D''INSCRIPTION'!S52) -> 0 | H52: =INDEX('FEUILLE D''INSCRIPTION'!U$7:U$15,'FEUILLE D''INSCRIPTION'!T52) -> 0 | I52: =INDEX('LISTE DES TIREURS'!G$8:G$82,'FEUILLE D''INSCRIPTION'!V52) -> 0 | J52: =INDEX('LISTE DES TIREURS'!F$8:F$82,'FEUILLE D''INSCRIPTION'!V52) -> 0 | N52: =INDEX('LISTE DES TIREURS'!D$74:D$194,'FEUILLE D''INSCRIPTION'!S52) -> 0 | R52: =IF(S52=1,"",COUNTIFS($S$7:$S$181,S52)) ->  | S52: 1 | T52: 1 | V52: 12
F53: =INDEX('LISTE DES TIREURS'!B$74:B$194,'FEUILLE D''INSCRIPTION'!S53) -> 0 | G53: =INDEX('LISTE DES TIREURS'!C$74:C$194,'FEUILLE D''INSCRIPTION'!S53) -> 0 | H53: =INDEX('FEUILLE D''INSCRIPTION'!U$7:U$15,'FEUILLE D''INSCRIPTION'!T53) -> 0 | I53: =INDEX('LISTE DES TIREURS'!G$8:G$82,'FEUILLE D''INSCRIPTION'!V53) -> 0 | J53: =INDEX('LISTE DES TIREURS'!F$8:F$82,'FEUILLE D''INSCRIPTION'!V53) -> 0 | N53: =INDEX('LISTE DES TIREURS'!D$74:D$194,'FEUILLE D''INSCRIPTION'!S53) -> 0 | S53: 1 | T53: 1 | V53: 12
F55: =INDEX('LISTE DES TIREURS'!B$74:B$194,'FEUILLE D''INSCRIPTION'!S55) -> 0 | G55: =INDEX('LISTE DES TIREURS'!C$74:C$194,'FEUILLE D''INSCRIPTION'!S55) -> 0 | H55: =INDEX('FEUILLE D''INSCRIPTION'!U$7:U$15,'FEUILLE D''INSCRIPTION'!T55) -> 0 | I55: =INDEX('LISTE DES TIREURS'!G$8:G$82,'FEUILLE D''INSCRIPTION'!V55) -> 0 | J55: =INDEX('LISTE DES TIREURS'!F$8:F$82,'FEUILLE D''INSCRIPTION'!V55) -> 0 | N55: =INDEX('LISTE DES TIREURS'!D$74:D$194,'FEUILLE D''INSCRIPTION'!S55) -> 0 | R55: =IF(S55=1,"",COUNTIFS($S$7:$S$181,S55)) ->  | S55: 1 | T55: 1 | V55: 20
F56: =INDEX('LISTE DES TIREURS'!B$74:B$194,'FEUILLE D''INSCRIPTION'!S56) -> 0 | G56: =INDEX('LISTE DES TIREURS'!C$74:C$194,'FEUILLE D''INSCRIPTION'!S56) -> 0 | H56: =INDEX('FEUILLE D''INSCRIPTION'!U$7:U$15,'FEUILLE D''INSCRIPTION'!T56) -> 0 | I56: =INDEX('LISTE DES TIREURS'!G$8:G$82,'FEUILLE D''INSCRIPTION'!V56) -> 0 | J56: =INDEX('LISTE DES TIREURS'!F$8:F$82,'FEUILLE D''INSCRIPTION'!V56) -> 0 | N56: =INDEX('LISTE DES TIREURS'!D$74:D$194,'FEUILLE D''INSCRIPTION'!S56) -> 0 | S56: 1 | T56: 1 | V56: 20
F57: =INDEX('LISTE DES TIREURS'!B$74:B$194,'FEUILLE D''INSCRIPTION'!S57) -> 0 | G57: =INDEX('LISTE DES TIREURS'!C$74:C$194,'FEUILLE D''INSCRIPTION'!S57) -> 0 | H57: =INDEX('FEUILLE D''INSCRIPTION'!U$7:U$15,'FEUILLE D''INSCRIPTION'!T57) -> 0 | I57: =INDEX('LISTE DES TIREURS'!G$8:G$82,'FEUILLE D''INSCRIPTION'!V57) -> 0 | J57: =INDEX('LISTE DES TIREURS'!F$8:F$82,'FEUILLE D''INSCRIPTION'!V57) -> 0 | N57: =INDEX('LISTE DES TIREURS'!D$74:D$194,'FEUILLE D''INSCRIPTION'!S57) -> 0 | R57: =IF(S57=1,"",COUNTIFS($S$7:$S$181,S57)) ->  | S57: 1 | T57: 1 | V57: 20
F58: =INDEX('LISTE DES TIREURS'!B$74:B$194,'FEUILLE D''INSCRIPTION'!S58) -> 0 | G58: =INDEX('LISTE DES TIREURS'!C$74:C$194,'FEUILLE D''INSCRIPTION'!S58) -> 0 | H58: =INDEX('FEUILLE D''INSCRIPTION'!U$7:U$15,'FEUILLE D''INSCRIPTION'!T58) -> 0 | I58: =INDEX('LISTE DES TIREURS'!G$8:G$82,'FEUILLE D''INSCRIPTION'!V58) -> 0 | J58: =INDEX('LISTE DES TIREURS'!F$8:F$82,'FEUILLE D''INSCRIPTION'!V58) -> 0 | N58: =INDEX('LISTE DES TIREURS'!D$74:D$194,'FEUILLE D''INSCRIPTION'!S58) -> 0 | R58: =IF(S58=1,"",COUNTIFS($S$7:$S$181,S58)) ->  | S58: 1 | T58: 1 | V58: 20
F59: =INDEX('LISTE DES TIREURS'!B$74:B$194,'FEUILLE D''INSCRIPTION'!S59) -> 0 | G59: =INDEX('LISTE DES TIREURS'!C$74:C$194,'FEUILLE D''INSCRIPTION'!S59) -> 0 | H59: =INDEX('FEUILLE D''INSCRIPTION'!U$7:U$15,'FEUILLE D''INSCRIPTION'!T59) -> 0 | I59: =INDEX('LISTE DES TIREURS'!G$8:G$82,'FEUILLE D''INSCRIPTION'!V59) -> 0 | J59: =INDEX('LISTE DES TIREURS'!F$8:F$82,'FEUILLE D''INSCRIPTION'!V59) -> 0 | N59: =INDEX('LISTE DES TIREURS'!D$74:D$194,'FEUILLE D''INSCRIPTION'!S59) -> 0 | S59: 1 | T59: 1 | V59: 20
F61: =INDEX('LISTE DES TIREURS'!B$74:B$194,'FEUILLE D''INSCRIPTION'!S61) -> 0 | G61: =INDEX('LISTE DES TIREURS'!C$74:C$194,'FEUILLE D''INSCRIPTION'!S61) -> 0 | H61: =INDEX('FEUILLE D''INSCRIPTION'!U$7:U$15,'FEUILLE D''INSCRIPTION'!T61) -> 0 | I61: =INDEX('LISTE DES TIREURS'!G$8:G$82,'FEUILLE D''INSCRIPTION'!V61) -> 0 | J61: =INDEX('LISTE DES TIREURS'!F$8:F$82,'FEUILLE D''INSCRIPTION'!V61) -> 0 | N61: =INDEX('LISTE DES TIREURS'!D$74:D$194,'FEUILLE D''INSCRIPTION'!S61) -> 0 | R61: =IF(S61=1,"",COUNTIFS($S$7:$S$181,S61)) ->  | S61: 1 | T61: 1 | V61: 16
F62: =INDEX('LISTE DES TIREURS'!B$74:B$194,'FEUILLE D''INSCRIPTION'!S62) -> 0 | G62: =INDEX('LISTE DES TIREURS'!C$74:C$194,'FEUILLE D''INSCRIPTION'!S62) -> 0 | H62: =INDEX('FEUILLE D''INSCRIPTION'!U$7:U$15,'FEUILLE D''INSCRIPTION'!T62) -> 0 | I62: =INDEX('LISTE DES TIREURS'!G$8:G$82,'FEUILLE D''INSCRIPTION'!V62) -> 0 | J62: =INDEX('LISTE DES TIREURS'!F$8:F$82,'FEUILLE D''INSCRIPTION'!V62) -> 0 | N62: =INDEX('LISTE DES TIREURS'!D$74:D$194,'FEUILLE D''INSCRIPTION'!S62) -> 0 | S62: 1 | T62: 1 | V62: 16
F63: =INDEX('LISTE DES TIREURS'!B$74:B$194,'FEUILLE D''INSCRIPTION'!S63) -> 0 | G63: =INDEX('LISTE DES TIREURS'!C$74:C$194,'FEUILLE D''INSCRIPTION'!S63) -> 0 | H63: =INDEX('FEUILLE D''INSCRIPTION'!U$7:U$15,'FEUILLE D''INSCRIPTION'!T63) -> 0 | I63: =INDEX('LISTE DES TIREURS'!G$8:G$82,'FEUILLE D''INSCRIPTION'!V63) -> 0 | J63: =INDEX('LISTE DES TIREURS'!F$8:F$82,'FEUILLE D''INSCRIPTION'!V63) -> 0 | N63: =INDEX('LISTE DES TIREURS'!D$74:D$194,'FEUILLE D''INSCRIPTION'!S63) -> 0 | R63: =IF(S63=1,"",COUNTIFS($S$7:$S$181,S63)) ->  | S63: 1 | T63: 1 | V63: 16
F64: =INDEX('LISTE DES TIREURS'!B$74:B$194,'FEUILLE D''INSCRIPTION'!S64) -> 0 | G64: =INDEX('LISTE DES TIREURS'!C$74:C$194,'FEUILLE D''INSCRIPTION'!S64) -> 0 | H64: =INDEX('FEUILLE D''INSCRIPTION'!U$7:U$15,'FEUILLE D''INSCRIPTION'!T64) -> 0 | I64: =INDEX('LISTE DES TIREURS'!G$8:G$82,'FEUILLE D''INSCRIPTION'!V64) -> 0 | J64: =INDEX('LISTE DES TIREURS'!F$8:F$82,'FEUILLE D''INSCRIPTION'!V64) -> 0 | N64: =INDEX('LISTE DES TIREURS'!D$74:D$194,'FEUILLE D''INSCRIPTION'!S64) -> 0 | R64: =IF(S64=1,"",COUNTIFS($S$7:$S$181,S64)) ->  | S64: 1 | T64: 1 | V64: 16
F65: =INDEX('LISTE DES TIREURS'!B$74:B$194,'FEUILLE D''INSCRIPTION'!S65) -> 0 | G65: =INDEX('LISTE DES TIREURS'!C$74:C$194,'FEUILLE D''INSCRIPTION'!S65) -> 0 | H65: =INDEX('FEUILLE D''INSCRIPTION'!U$7:U$15,'FEUILLE D''INSCRIPTION'!T65) -> 0 | I65: =INDEX('LISTE DES TIREURS'!G$8:G$82,'FEUILLE D''INSCRIPTION'!V65) -> 0 | J65: =INDEX('LISTE DES TIREURS'!F$8:F$82,'FEUILLE D''INSCRIPTION'!V65) -> 0 | N65: =INDEX('LISTE DES TIREURS'!D$74:D$194,'FEUILLE D''INSCRIPTION'!S65) -> 0 | S65: 1 | T65: 1 | V65: 16
F67: =INDEX('LISTE DES TIREURS'!B$74:B$194,'FEUILLE D''INSCRIPTION'!S67) -> 0 | G67: =INDEX('LISTE DES TIREURS'!C$74:C$194,'FEUILLE D''INSCRIPTION'!S67) -> 0 | H67: =INDEX('FEUILLE D''INSCRIPTION'!U$7:U$15,'FEUILLE D''INSCRIPTION'!T67) -> 0 | I67: =INDEX('LISTE DES TIREURS'!G$8:G$82,'FEUILLE D''INSCRIPTION'!V67) -> 0 | J67: =INDEX('LISTE DES TIREURS'!F$8:F$82,'FEUILLE D''INSCRIPTION'!V67) -> 0 | N67: =INDEX('LISTE DES TIREURS'!D$74:D$194,'FEUILLE D''INSCRIPTION'!S67) -> 0 | R67: =IF(S67=1,"",COUNTIFS($S$7:$S$181,S67)) ->  | S67: 1 | T67: 1 | V67: 1
F68: =INDEX('LISTE DES TIREURS'!B$74:B$194,'FEUILLE D''INSCRIPTION'!S68) -> 0 | G68: =INDEX('LISTE DES TIREURS'!C$74:C$194,'FEUILLE D''INSCRIPTION'!S68) -> 0 | H68: =INDEX('FEUILLE D''INSCRIPTION'!U$7:U$15,'FEUILLE D''INSCRIPTION'!T68) -> 0 | I68: =INDEX('LISTE DES TIREURS'!G$8:G$82,'FEUILLE D''INSCRIPTION'!V68) -> 0 | J68: =INDEX('LISTE DES TIREURS'!F$8:F$82,'FEUILLE D''INSCRIPTION'!V68) -> 0 | N68: =INDEX('LISTE DES TIREURS'!D$74:D$194,'FEUILLE D''INSCRIPTION'!S68) -> 0 | S68: 1 | T68: 1 | V68: 1
F69: =INDEX('LISTE DES TIREURS'!B$74:B$194,'FEUILLE D''INSCRIPTION'!S69) -> 0 | G69: =INDEX('LISTE DES TIREURS'!C$74:C$194,'FEUILLE D''INSCRIPTION'!S69) -> 0 | H69: =INDEX('FEUILLE D''INSCRIPTION'!U$7:U$15,'FEUILLE D''INSCRIPTION'!T69) -> 0 | I69: =INDEX('LISTE DES TIREURS'!G$8:G$82,'FEUILLE D''INSCRIPTION'!V69) -> 0 | J69: =INDEX('LISTE DES TIREURS'!F$8:F$82,'FEUILLE D''INSCRIPTION'!V69) -> 0 | N69: =INDEX('LISTE DES TIREURS'!D$74:D$194,'FEUILLE D''INSCRIPTION'!S69) -> 0 | R69: =IF(S69=1,"",COUNTIFS($S$7:$S$181,S69)) ->  | S69: 1 | T69: 1 | V69: 1
F70: =INDEX('LISTE DES TIREURS'!B$74:B$194,'FEUILLE D''INSCRIPTION'!S70) -> 0 | G70: =INDEX('LISTE DES TIREURS'!C$74:C$194,'FEUILLE D''INSCRIPTION'!S70) -> 0 | H70: =INDEX('FEUILLE D''INSCRIPTION'!U$7:U$15,'FEUILLE D''INSCRIPTION'!T70) -> 0 | I70: =INDEX('LISTE DES TIREURS'!G$8:G$82,'FEUILLE D''INSCRIPTION'!V70) -> 0 | J70: =INDEX('LISTE DES TIREURS'!F$8:F$82,'FEUILLE D''INSCRIPTION'!V70) -> 0 | N70: =INDEX('LISTE DES TIREURS'!D$74:D$194,'FEUILLE D''INSCRIPTION'!S70) -> 0 | R70: =IF(S70=1,"",COUNTIFS($S$7:$S$181,S70)) ->  | S70: 1 | T70: 1 | V70: 1
F71: =INDEX('LISTE DES TIREURS'!B$74:B$194,'FEUILLE D''INSCRIPTION'!S71) -> 0 | G71: =INDEX('LISTE DES TIREURS'!C$74:C$194,'FEUILLE D''INSCRIPTION'!S71) -> 0 | H71: =INDEX('FEUILLE D''INSCRIPTION'!U$7:U$15,'FEUILLE D''INSCRIPTION'!T71) -> 0 | I71: =INDEX('LISTE DES TIREURS'!G$8:G$82,'FEUILLE D''INSCRIPTION'!V71) -> 0 | J71: =INDEX('LISTE DES TIREURS'!F$8:F$82,'FEUILLE D''INSCRIPTION'!V71) -> 0 | N71: =INDEX('LISTE DES TIREURS'!D$74:D$194,'FEUILLE D''INSCRIPTION'!S71) -> 0 | S71: 1 | T71: 1 | V71: 1
F73: =INDEX('LISTE DES TIREURS'!B$74:B$194,'FEUILLE D''INSCRIPTION'!S73) -> 0 | G73: =INDEX('LISTE DES TIREURS'!C$74:C$194,'FEUILLE D''INSCRIPTION'!S73) -> 0 | H73: =INDEX('FEUILLE D''INSCRIPTION'!U$7:U$15,'FEUILLE D''INSCRIPTION'!T73) -> 0 | I73: =INDEX('LISTE DES TIREURS'!G$8:G$82,'FEUILLE D''INSCRIPTION'!V73) -> 0 | J73: =INDEX('LISTE DES TIREURS'!F$8:F$82,'FEUILLE D''INSCRIPTION'!V73) -> 0 | K73: =IF(F73>0,$I$3,"") ->  | L73: =IF(F73>0,$F$2,"") ->  | M73: =IF(F73>0,$G$3,"") ->  | N73: =INDEX('LISTE DES TIREURS'!D$74:D$194,'FEUILLE D''INSCRIPTION'!S73) -> 0 | R73: =IF(S73=1,"",COUNTIFS($S$7:$S$181,S73)) ->  | S73: 1 | T73: 1 | V73: 15
F74: =INDEX('LISTE DES TIREURS'!B$74:B$194,'FEUILLE D''INSCRIPTION'!S74) -> 0 | G74: =INDEX('LISTE DES TIREURS'!C$74:C$194,'FEUILLE D''INSCRIPTION'!S74) -> 0 | H74: =INDEX('FEUILLE D''INSCRIPTION'!U$7:U$15,'FEUILLE D''INSCRIPTION'!T74) -> 0 | I74: =INDEX('LISTE DES TIREURS'!G$8:G$82,'FEUILLE D''INSCRIPTION'!V74) -> 0 | J74: =INDEX('LISTE DES TIREURS'!F$8:F$82,'FEUILLE D''INSCRIPTION'!V74) -> 0 | N74: =INDEX('LISTE DES TIREURS'!D$74:D$194,'FEUILLE D''INSCRIPTION'!S74) -> 0 | S74: 1 | T74: 1 | V74: 15
F75: =INDEX('LISTE DES TIREURS'!B$74:B$194,'FEUILLE D''INSCRIPTION'!S75) -> 0 | G75: =INDEX('LISTE DES TIREURS'!C$74:C$194,'FEUILLE D''INSCRIPTION'!S75) -> 0 | H75: =INDEX('FEUILLE D''INSCRIPTION'!U$7:U$15,'FEUILLE D''INSCRIPTION'!T75) -> 0 | I75: =INDEX('LISTE DES TIREURS'!G$8:G$82,'FEUILLE D''INSCRIPTION'!V75) -> 0 | J75: =INDEX('LISTE DES TIREURS'!F$8:F$82,'FEUILLE D''INSCRIPTION'!V75) -> 0 | N75: =INDEX('LISTE DES TIREURS'!D$74:D$194,'FEUILLE D''INSCRIPTION'!S75) -> 0 | R75: =IF(S75=1,"",COUNTIFS($S$7:$S$181,S75)) ->  | S75: 1 | T75: 1 | V75: 15
F76: =INDEX('LISTE DES TIREURS'!B$74:B$194,'FEUILLE D''INSCRIPTION'!S76) -> 0 | G76: =INDEX('LISTE DES TIREURS'!C$74:C$194,'FEUILLE D''INSCRIPTION'!S76) -> 0 | H76: =INDEX('FEUILLE D''INSCRIPTION'!U$7:U$15,'FEUILLE D''INSCRIPTION'!T76) -> 0 | I76: =INDEX('LISTE DES TIREURS'!G$8:G$82,'FEUILLE D''INSCRIPTION'!V76) -> 0 | J76: =INDEX('LISTE DES TIREURS'!F$8:F$82,'FEUILLE D''INSCRIPTION'!V76) -> 0 | N76: =INDEX('LISTE DES TIREURS'!D$74:D$194,'FEUILLE D''INSCRIPTION'!S76) -> 0 | R76: =IF(S76=1,"",COUNTIFS($S$7:$S$181,S76)) ->  | S76: 1 | T76: 1 | V76: 15
F77: =INDEX('LISTE DES TIREURS'!B$74:B$194,'FEUILLE D''INSCRIPTION'!S77) -> 0 | G77: =INDEX('LISTE DES TIREURS'!C$74:C$194,'FEUILLE D''INSCRIPTION'!S77) -> 0 | H77: =INDEX('FEUILLE D''INSCRIPTION'!U$7:U$15,'FEUILLE D''INSCRIPTION'!T77) -> 0 | I77: =INDEX('LISTE DES TIREURS'!G$8:G$82,'FEUILLE D''INSCRIPTION'!V77) -> 0 | J77: =INDEX('LISTE DES TIREURS'!F$8:F$82,'FEUILLE D''INSCRIPTION'!V77) -> 0 | N77: =INDEX('LISTE DES TIREURS'!D$74:D$194,'FEUILLE D''INSCRIPTION'!S77) -> 0 | S77: 1 | T77: 1 | V77: 15
F79: =INDEX('LISTE DES TIREURS'!B$74:B$194,'FEUILLE D''INSCRIPTION'!S79) -> 0 | G79: =INDEX('LISTE DES TIREURS'!C$74:C$194,'FEUILLE D''INSCRIPTION'!S79) -> 0 | H79: =INDEX('FEUILLE D''INSCRIPTION'!U$7:U$15,'FEUILLE D''INSCRIPTION'!T79) -> 0 | I79: =INDEX('LISTE DES TIREURS'!G$8:G$82,'FEUILLE D''INSCRIPTION'!V79) -> 0 | J79: =INDEX('LISTE DES TIREURS'!F$8:F$82,'FEUILLE D''INSCRIPTION'!V79) -> 0 | N79: =INDEX('LISTE DES TIREURS'!D$74:D$194,'FEUILLE D''INSCRIPTION'!S79) -> 0 | R79: =IF(S79=1,"",COUNTIFS($S$7:$S$181,S79)) ->  | S79: 1 | T79: 1 | V79: 13
F80: =INDEX('LISTE DES TIREURS'!B$74:B$194,'FEUILLE D''INSCRIPTION'!S80) -> 0 | G80: =INDEX('LISTE DES TIREURS'!C$74:C$194,'FEUILLE D''INSCRIPTION'!S80) -> 0 | H80: =INDEX('FEUILLE D''INSCRIPTION'!U$7:U$15,'FEUILLE D''INSCRIPTION'!T80) -> 0 | I80: =INDEX('LISTE DES TIREURS'!G$8:G$82,'FEUILLE D''INSCRIPTION'!V80) -> 0 | J80: =INDEX('LISTE DES TIREURS'!F$8:F$82,'FEUILLE D''INSCRIPTION'!V80) -> 0 | N80: =INDEX('LISTE DES TIREURS'!D$74:D$194,'FEUILLE D''INSCRIPTION'!S80) -> 0 | S80: 1 | T80: 1 | V80: 13
F81: =INDEX('LISTE DES TIREURS'!B$74:B$194,'FEUILLE D''INSCRIPTION'!S81) -> 0 | G81: =INDEX('LISTE DES TIREURS'!C$74:C$194,'FEUILLE D''INSCRIPTION'!S81) -> 0 | H81: =INDEX('FEUILLE D''INSCRIPTION'!U$7:U$15,'FEUILLE D''INSCRIPTION'!T81) -> 0 | I81: =INDEX('LISTE DES TIREURS'!G$8:G$82,'FEUILLE D''INSCRIPTION'!V81) -> 0 | J81: =INDEX('LISTE DES TIREURS'!F$8:F$82,'FEUILLE D''INSCRIPTION'!V81) -> 0 | N81: =INDEX('LISTE DES TIREURS'!D$74:D$194,'FEUILLE D''INSCRIPTION'!S81) -> 0 | R81: =IF(S81=1,"",COUNTIFS($S$7:$S$181,S81)) ->  | S81: 1 | T81: 1 | V81: 13
F82: =INDEX('LISTE DES TIREURS'!B$74:B$194,'FEUILLE D''INSCRIPTION'!S82) -> 0 | G82: =INDEX('LISTE DES TIREURS'!C$74:C$194,'FEUILLE D''INSCRIPTION'!S82) -> 0 | H82: =INDEX('FEUILLE D''INSCRIPTION'!U$7:U$15,'FEUILLE D''INSCRIPTION'!T82) -> 0 | I82: =INDEX('LISTE DES TIREURS'!G$8:G$82,'FEUILLE D''INSCRIPTION'!V82) -> 0 | J82: =INDEX('LISTE DES TIREURS'!F$8:F$82,'FEUILLE D''INSCRIPTION'!V82) -> 0 | N82: =INDEX('LISTE DES TIREURS'!D$74:D$194,'FEUILLE D''INSCRIPTION'!S82) -> 0 | R82: =IF(S82=1,"",COUNTIFS($S$7:$S$181,S82)) ->  | S82: 1 | T82: 1 | V82: 13
F83: =INDEX('LISTE DES TIREURS'!B$74:B$194,'FEUILLE D''INSCRIPTION'!S83) -> 0 | G83: =INDEX('LISTE DES TIREURS'!C$74:C$194,'FEUILLE D''INSCRIPTION'!S83) -> 0 | H83: =INDEX('FEUILLE D''INSCRIPTION'!U$7:U$15,'FEUILLE D''INSCRIPTION'!T83) -> 0 | I83: =INDEX('LISTE DES TIREURS'!G$8:G$82,'FEUILLE D''INSCRIPTION'!V83) -> 0 | J83: =INDEX('LISTE DES TIREURS'!F$8:F$82,'FEUILLE D''INSCRIPTION'!V83) -> 0 | N83: =INDEX('LISTE DES TIREURS'!D$74:D$194,'FEUILLE D''INSCRIPTION'!S83) -> 0 | S83: 1 | T83: 1 | V83: 13
F85: =INDEX('LISTE DES TIREURS'!B$74:B$194,'FEUILLE D''INSCRIPTION'!S85) -> 0 | G85: =INDEX('LISTE DES TIREURS'!C$74:C$194,'FEUILLE D''INSCRIPTION'!S85) -> 0 | H85: =INDEX('FEUILLE D''INSCRIPTION'!U$7:U$15,'FEUILLE D''INSCRIPTION'!T85) -> 0 | I85: =INDEX('LISTE DES TIREURS'!G$8:G$82,'FEUILLE D''INSCRIPTION'!V85) -> 0 | J85: =INDEX('LISTE DES TIREURS'!F$8:F$82,'FEUILLE D''INSCRIPTION'!V85) -> 0 | N85: =INDEX('LISTE DES TIREURS'!D$74:D$194,'FEUILLE D''INSCRIPTION'!S85) -> 0 | R85: =IF(S85=1,"",COUNTIFS($S$7:$S$181,S85)) ->  | S85: 1 | T85: 1 | V85: 1
F86: =INDEX('LISTE DES TIREURS'!B$74:B$194,'FEUILLE D''INSCRIPTION'!S86) -> 0 | G86: =INDEX('LISTE DES TIREURS'!C$74:C$194,'FEUILLE D''INSCRIPTION'!S86) -> 0 | H86: =INDEX('FEUILLE D''INSCRIPTION'!U$7:U$15,'FEUILLE D''INSCRIPTION'!T86) -> 0 | I86: =INDEX('LISTE DES TIREURS'!G$8:G$82,'FEUILLE D''INSCRIPTION'!V86) -> 0 | J86: =INDEX('LISTE DES TIREURS'!F$8:F$82,'FEUILLE D''INSCRIPTION'!V86) -> 0 | N86: =INDEX('LISTE DES TIREURS'!D$74:D$194,'FEUILLE D''INSCRIPTION'!S86) -> 0 | S86: 1 | T86: 1 | V86: 1
F87: =INDEX('LISTE DES TIREURS'!B$74:B$194,'FEUILLE D''INSCRIPTION'!S87) -> 0 | G87: =INDEX('LISTE DES TIREURS'!C$74:C$194,'FEUILLE D''INSCRIPTION'!S87) -> 0 | H87: =INDEX('FEUILLE D''INSCRIPTION'!U$7:U$15,'FEUILLE D''INSCRIPTION'!T87) -> 0 | I87: =INDEX('LISTE DES TIREURS'!G$8:G$82,'FEUILLE D''INSCRIPTION'!V87) -> 0 | J87: =INDEX('LISTE DES TIREURS'!F$8:F$82,'FEUILLE D''INSCRIPTION'!V87) -> 0 | N87: =INDEX('LISTE DES TIREURS'!D$74:D$194,'FEUILLE D''INSCRIPTION'!S87) -> 0 | R87: =IF(S87=1,"",COUNTIFS($S$7:$S$181,S87)) ->  | S87: 1 | T87: 1 | V87: 1
F88: =INDEX('LISTE DES TIREURS'!B$74:B$194,'FEUILLE D''INSCRIPTION'!S88) -> 0 | G88: =INDEX('LISTE DES TIREURS'!C$74:C$194,'FEUILLE D''INSCRIPTION'!S88) -> 0 | H88: =INDEX('FEUILLE D''INSCRIPTION'!U$7:U$15,'FEUILLE D''INSCRIPTION'!T88) -> 0 | I88: =INDEX('LISTE DES TIREURS'!G$8:G$82,'FEUILLE D''INSCRIPTION'!V88) -> 0 | J88: =INDEX('LISTE DES TIREURS'!F$8:F$82,'FEUILLE D''INSCRIPTION'!V88) -> 0 | N88: =INDEX('LISTE DES TIREURS'!D$74:D$194,'FEUILLE D''INSCRIPTION'!S88) -> 0 | R88: =IF(S88=1,"",COUNTIFS($S$7:$S$181,S88)) ->  | S88: 1 | T88: 1 | V88: 1
F89: =INDEX('LISTE DES TIREURS'!B$74:B$194,'FEUILLE D''INSCRIPTION'!S89) -> 0 | G89: =INDEX('LISTE DES TIREURS'!C$74:C$194,'FEUILLE D''INSCRIPTION'!S89) -> 0 | H89: =INDEX('FEUILLE D''INSCRIPTION'!U$7:U$15,'FEUILLE D''INSCRIPTION'!T89) -> 0 | I89: =INDEX('LISTE DES TIREURS'!G$8:G$82,'FEUILLE D''INSCRIPTION'!V89) -> 0 | J89: =INDEX('LISTE DES TIREURS'!F$8:F$82,'FEUILLE D''INSCRIPTION'!V89) -> 0 | N89: =INDEX('LISTE DES TIREURS'!D$74:D$194,'FEUILLE D''INSCRIPTION'!S89) -> 0 | S89: 1 | T89: 1 | V89: 1
F91: =INDEX('LISTE DES TIREURS'!B$74:B$194,'FEUILLE D''INSCRIPTION'!S91) -> 0 | G91: =INDEX('LISTE DES TIREURS'!C$74:C$194,'FEUILLE D''INSCRIPTION'!S91) -> 0 | H91: =INDEX('FEUILLE D''INSCRIPTION'!U$7:U$15,'FEUILLE D''INSCRIPTION'!T91) -> 0 | I91: =INDEX('LISTE DES TIREURS'!G$8:G$82,'FEUILLE D''INSCRIPTION'!V91) -> 0 | J91: =INDEX('LISTE DES TIREURS'!F$8:F$82,'FEUILLE D''INSCRIPTION'!V91) -> 0 | K91: =IF(F91>0,$I$3,"") ->  | L91: =IF(F91>0,$F$2,"") ->  | M91: =IF(F91>0,$G$3,"") ->  | N91: =INDEX('LISTE DES TIREURS'!D$74:D$194,'FEUILLE D''INSCRIPTION'!S91) -> 0 | R91: =IF(S91=1,"",COUNTIFS($S$7:$S$181,S91)) ->  | S91: 1 | T91: 1 | V91: 10
F92: =INDEX('LISTE DES TIREURS'!B$74:B$194,'FEUILLE D''INSCRIPTION'!S92) -> 0 | G92: =INDEX('LISTE DES TIREURS'!C$74:C$194,'FEUILLE D''INSCRIPTION'!S92) -> 0 | H92: =INDEX('FEUILLE D''INSCRIPTION'!U$7:U$15,'FEUILLE D''INSCRIPTION'!T92) -> 0 | I92: =INDEX('LISTE DES TIREURS'!G$8:G$82,'FEUILLE D''INSCRIPTION'!V92) -> 0 | J92: =INDEX('LISTE DES TIREURS'!F$8:F$82,'FEUILLE D''INSCRIPTION'!V92) -> 0 | N92: =INDEX('LISTE DES TIREURS'!D$74:D$194,'FEUILLE D''INSCRIPTION'!S92) -> 0 | S92: 1 | T92: 1 | V92: 10
F93: =INDEX('LISTE DES TIREURS'!B$74:B$194,'FEUILLE D''INSCRIPTION'!S93) -> 0 | G93: =INDEX('LISTE DES TIREURS'!C$74:C$194,'FEUILLE D''INSCRIPTION'!S93) -> 0 | H93: =INDEX('FEUILLE D''INSCRIPTION'!U$7:U$15,'FEUILLE D''INSCRIPTION'!T93) -> 0 | I93: =INDEX('LISTE DES TIREURS'!G$8:G$82,'FEUILLE D''INSCRIPTION'!V93) -> 0 | J93: =INDEX('LISTE DES TIREURS'!F$8:F$82,'FEUILLE D''INSCRIPTION'!V93) -> 0 | N93: =INDEX('LISTE DES TIREURS'!D$74:D$194,'FEUILLE D''INSCRIPTION'!S93) -> 0 | R93: =IF(S93=1,"",COUNTIFS($S$7:$S$181,S93)) ->  | S93: 1 | T93: 1 | V93: 10
F94: =INDEX('LISTE DES TIREURS'!B$74:B$194,'FEUILLE D''INSCRIPTION'!S94) -> 0 | G94: =INDEX('LISTE DES TIREURS'!C$74:C$194,'FEUILLE D''INSCRIPTION'!S94) -> 0 | H94: =INDEX('FEUILLE D''INSCRIPTION'!U$7:U$15,'FEUILLE D''INSCRIPTION'!T94) -> 0 | I94: =INDEX('LISTE DES TIREURS'!G$8:G$82,'FEUILLE D''INSCRIPTION'!V94) -> 0 | J94: =INDEX('LISTE DES TIREURS'!F$8:F$82,'FEUILLE D''INSCRIPTION'!V94) -> 0 | N94: =INDEX('LISTE DES TIREURS'!D$74:D$194,'FEUILLE D''INSCRIPTION'!S94) -> 0 | R94: =IF(S94=1,"",COUNTIFS($S$7:$S$181,S94)) ->  | S94: 1 | T94: 1 | V94: 10
F95: =INDEX('LISTE DES TIREURS'!B$74:B$194,'FEUILLE D''INSCRIPTION'!S95) -> 0 | G95: =INDEX('LISTE DES TIREURS'!C$74:C$194,'FEUILLE D''INSCRIPTION'!S95) -> 0 | H95: =INDEX('FEUILLE D''INSCRIPTION'!U$7:U$15,'FEUILLE D''INSCRIPTION'!T95) -> 0 | I95: =INDEX('LISTE DES TIREURS'!G$8:G$82,'FEUILLE D''INSCRIPTION'!V95) -> 0 | J95: =INDEX('LISTE DES TIREURS'!F$8:F$82,'FEUILLE D''INSCRIPTION'!V95) -> 0 | N95: =INDEX('LISTE DES TIREURS'!D$74:D$194,'FEUILLE D''INSCRIPTION'!S95) -> 0 | S95: 1 | T95: 1 | V95: 10
F97: =INDEX('LISTE DES TIREURS'!B$74:B$194,'FEUILLE D''INSCRIPTION'!S97) -> 0 | G97: =INDEX('LISTE DES TIREURS'!C$74:C$194,'FEUILLE D''INSCRIPTION'!S97) -> 0 | H97: =INDEX('FEUILLE D''INSCRIPTION'!U$7:U$15,'FEUILLE D''INSCRIPTION'!T97) -> 0 | I97: =INDEX('LISTE DES TIREURS'!G$8:G$82,'FEUILLE D''INSCRIPTION'!V97) -> 0 | J97: =INDEX('LISTE DES TIREURS'!F$8:F$82,'FEUILLE D''INSCRIPTION'!V97) -> 0 | K97: =IF(F97>0,$I$3,"") ->  | L97: =IF(F97>0,$F$2,"") ->  | M97: =IF(F97>0,$G$3,"") ->  | N97: =INDEX('LISTE DES TIREURS'!D$74:D$194,'FEUILLE D''INSCRIPTION'!S97) -> 0 | R97: =IF(S97=1,"",COUNTIFS($S$7:$S$181,S97)) ->  | S97: 1 | T97: 1 | V97: 1
F98: =INDEX('LISTE DES TIREURS'!B$74:B$194,'FEUILLE D''INSCRIPTION'!S98) -> 0 | G98: =INDEX('LISTE DES TIREURS'!C$74:C$194,'FEUILLE D''INSCRIPTION'!S98) -> 0 | H98: =INDEX('FEUILLE D''INSCRIPTION'!U$7:U$15,'FEUILLE D''INSCRIPTION'!T98) -> 0 | I98: =INDEX('LISTE DES TIREURS'!G$8:G$82,'FEUILLE D''INSCRIPTION'!V98) -> 0 | J98: =INDEX('LISTE DES TIREURS'!F$8:F$82,'FEUILLE D''INSCRIPTION'!V98) -> 0 | N98: =INDEX('LISTE DES TIREURS'!D$74:D$194,'FEUILLE D''INSCRIPTION'!S98) -> 0 | S98: 1 | T98: 1 | V98: 1
F99: =INDEX('LISTE DES TIREURS'!B$74:B$194,'FEUILLE D''INSCRIPTION'!S99) -> 0 | G99: =INDEX('LISTE DES TIREURS'!C$74:C$194,'FEUILLE D''INSCRIPTION'!S99) -> 0 | H99: =INDEX('FEUILLE D''INSCRIPTION'!U$7:U$15,'FEUILLE D''INSCRIPTION'!T99) -> 0 | I99: =INDEX('LISTE DES TIREURS'!G$8:G$82,'FEUILLE D''INSCRIPTION'!V99) -> 0 | J99: =INDEX('LISTE DES TIREURS'!F$8:F$82,'FEUILLE D''INSCRIPTION'!V99) -> 0 | N99: =INDEX('LISTE DES TIREURS'!D$74:D$194,'FEUILLE D''INSCRIPTION'!S99) -> 0 | R99: =IF(S99=1,"",COUNTIFS($S$7:$S$181,S99)) ->  | S99: 1 | T99: 1 | V99: 1
F100: =INDEX('LISTE DES TIREURS'!B$74:B$194,'FEUILLE D''INSCRIPTION'!S100) -> 0 | G100: =INDEX('LISTE DES TIREURS'!C$74:C$194,'FEUILLE D''INSCRIPTION'!S100) -> 0 | H100: =INDEX('FEUILLE D''INSCRIPTION'!U$7:U$15,'FEUILLE D''INSCRIPTION'!T100) -> 0 | I100: =INDEX('LISTE DES TIREURS'!G$8:G$82,'FEUILLE D''INSCRIPTION'!V100) -> 0 | J100: =INDEX('LISTE DES TIREURS'!F$8:F$82,'FEUILLE D''INSCRIPTION'!V100) -> 0 | N100: =INDEX('LISTE DES TIREURS'!D$74:D$194,'FEUILLE D''INSCRIPTION'!S100) -> 0 | R100: =IF(S100=1,"",COUNTIFS($S$7:$S$181,S100)) ->  | S100: 1 | T100: 1 | V100: 1
F101: =INDEX('LISTE DES TIREURS'!B$74:B$194,'FEUILLE D''INSCRIPTION'!S101) -> 0 | G101: =INDEX('LISTE DES TIREURS'!C$74:C$194,'FEUILLE D''INSCRIPTION'!S101) -> 0 | H101: =INDEX('FEUILLE D''INSCRIPTION'!U$7:U$15,'FEUILLE D''INSCRIPTION'!T101) -> 0 | I101: =INDEX('LISTE DES TIREURS'!G$8:G$82,'FEUILLE D''INSCRIPTION'!V101) -> 0 | J101: =INDEX('LISTE DES TIREURS'!F$8:F$82,'FEUILLE D''INSCRIPTION'!V101) -> 0 | N101: =INDEX('LISTE DES TIREURS'!D$74:D$194,'FEUILLE D''INSCRIPTION'!S101) -> 0 | S101: 1 | T101: 1 | V101: 1
F103: =INDEX('LISTE DES TIREURS'!B$74:B$194,'FEUILLE D''INSCRIPTION'!S103) -> 0 | G103: =INDEX('LISTE DES TIREURS'!C$74:C$194,'FEUILLE D''INSCRIPTION'!S103) -> 0 | H103: =INDEX('FEUILLE D''INSCRIPTION'!U$7:U$15,'FEUILLE D''INSCRIPTION'!T103) -> 0 | I103: =INDEX('LISTE DES TIREURS'!G$8:G$82,'FEUILLE D''INSCRIPTION'!V103) -> 0 | J103: =INDEX('LISTE DES TIREURS'!F$8:F$82,'FEUILLE D''INSCRIPTION'!V103) -> 0 | K103: =IF(F103>0,$I$3,"") ->  | L103: =IF(F103>0,$F$2,"") ->  | M103: =IF(F103>0,$G$3,"") ->  | N103: =INDEX('LISTE DES TIREURS'!D$74:D$194,'FEUILLE D''INSCRIPTION'!S103) -> 0 | R103: =IF(S103=1,"",COUNTIFS($S$7:$S$181,S103)) ->  | S103: 1 | T103: 1 | V103: 1
F104: =INDEX('LISTE DES TIREURS'!B$74:B$194,'FEUILLE D''INSCRIPTION'!S104) -> 0 | G104: =INDEX('LISTE DES TIREURS'!C$74:C$194,'FEUILLE D''INSCRIPTION'!S104) -> 0 | H104: =INDEX('FEUILLE D''INSCRIPTION'!U$7:U$15,'FEUILLE D''INSCRIPTION'!T104) -> 0 | I104: =INDEX('LISTE DES TIREURS'!G$8:G$82,'FEUILLE D''INSCRIPTION'!V104) -> 0 | J104: =INDEX('LISTE DES TIREURS'!F$8:F$82,'FEUILLE D''INSCRIPTION'!V104) -> 0 | N104: =INDEX('LISTE DES TIREURS'!D$74:D$194,'FEUILLE D''INSCRIPTION'!S104) -> 0 | S104: 1 | T104: 1 | V104: 1
F105: =INDEX('LISTE DES TIREURS'!B$74:B$194,'FEUILLE D''INSCRIPTION'!S105) -> 0 | G105: =INDEX('LISTE DES TIREURS'!C$74:C$194,'FEUILLE D''INSCRIPTION'!S105) -> 0 | H105: =INDEX('FEUILLE D''INSCRIPTION'!U$7:U$15,'FEUILLE D''INSCRIPTION'!T105) -> 0 | I105: =INDEX('LISTE DES TIREURS'!G$8:G$82,'FEUILLE D''INSCRIPTION'!V105) -> 0 | J105: =INDEX('LISTE DES TIREURS'!F$8:F$82,'FEUILLE D''INSCRIPTION'!V105) -> 0 | N105: =INDEX('LISTE DES TIREURS'!D$74:D$194,'FEUILLE D''INSCRIPTION'!S105) -> 0 | R105: =IF(S105=1,"",COUNTIFS($S$7:$S$181,S105)) ->  | S105: 1 | T105: 1 | V105: 1
F106: =INDEX('LISTE DES TIREURS'!B$74:B$194,'FEUILLE D''INSCRIPTION'!S106) -> 0 | G106: =INDEX('LISTE DES TIREURS'!C$74:C$194,'FEUILLE D''INSCRIPTION'!S106) -> 0 | H106: =INDEX('FEUILLE D''INSCRIPTION'!U$7:U$15,'FEUILLE D''INSCRIPTION'!T106) -> 0 | I106: =INDEX('LISTE DES TIREURS'!G$8:G$82,'FEUILLE D''INSCRIPTION'!V106) -> 0 | J106: =INDEX('LISTE DES TIREURS'!F$8:F$82,'FEUILLE D''INSCRIPTION'!V106) -> 0 | N106: =INDEX('LISTE DES TIREURS'!D$74:D$194,'FEUILLE D''INSCRIPTION'!S106) -> 0 | R106: =IF(S106=1,"",COUNTIFS($S$7:$S$181,S106)) ->  | S106: 1 | T106: 1 | V106: 1
F107: =INDEX('LISTE DES TIREURS'!B$74:B$194,'FEUILLE D''INSCRIPTION'!S107) -> 0 | G107: =INDEX('LISTE DES TIREURS'!C$74:C$194,'FEUILLE D''INSCRIPTION'!S107) -> 0 | H107: =INDEX('FEUILLE D''INSCRIPTION'!U$7:U$15,'FEUILLE D''INSCRIPTION'!T107) -> 0 | I107: =INDEX('LISTE DES TIREURS'!G$8:G$82,'FEUILLE D''INSCRIPTION'!V107) -> 0 | J107: =INDEX('LISTE DES TIREURS'!F$8:F$82,'FEUILLE D''INSCRIPTION'!V107) -> 0 | N107: =INDEX('LISTE DES TIREURS'!D$74:D$194,'FEUILLE D''INSCRIPTION'!S107) -> 0 | S107: 1 | T107: 1 | V107: 1
F109: =INDEX('LISTE DES TIREURS'!B$74:B$194,'FEUILLE D''INSCRIPTION'!S109) -> 0 | G109: =INDEX('LISTE DES TIREURS'!C$74:C$194,'FEUILLE D''INSCRIPTION'!S109) -> 0 | H109: =INDEX('FEUILLE D''INSCRIPTION'!U$7:U$15,'FEUILLE D''INSCRIPTION'!T109) -> 0 | I109: =INDEX('LISTE DES TIREURS'!G$8:G$82,'FEUILLE D''INSCRIPTION'!V109) -> 0 | J109: =INDEX('LISTE DES TIREURS'!F$8:F$82,'FEUILLE D''INSCRIPTION'!V109) -> 0 | K109: =IF(F109>0,$I$3,"") ->  | L109: =IF(F109>0,$F$2,"") ->  | M109: =IF(F109>0,$G$3,"") ->  | N109: =INDEX('LISTE DES TIREURS'!D$74:D$194,'FEUILLE D''INSCRIPTION'!S109) -> 0 | R109: =IF(S109=1,"",COUNTIFS($S$7:$S$181,S109)) ->  | S109: 1 | T109: 1 | V109: 1
F110: =INDEX('LISTE DES TIREURS'!B$74:B$194,'FEUILLE D''INSCRIPTION'!S110) -> 0 | G110: =INDEX('LISTE DES TIREURS'!C$74:C$194,'FEUILLE D''INSCRIPTION'!S110) -> 0 | H110: =INDEX('FEUILLE D''INSCRIPTION'!U$7:U$15,'FEUILLE D''INSCRIPTION'!T110) -> 0 | I110: =INDEX('LISTE DES TIREURS'!G$8:G$82,'FEUILLE D''INSCRIPTION'!V110) -> 0 | J110: =INDEX('LISTE DES TIREURS'!F$8:F$82,'FEUILLE D''INSCRIPTION'!V110) -> 0 | N110: =INDEX('LISTE DES TIREURS'!D$74:D$181,'FEUILLE D''INSCRIPTION'!S110) -> 0 | S110: 1 | T110: 1 | V110: 1
F111: =INDEX('LISTE DES TIREURS'!B$74:B$194,'FEUILLE D''INSCRIPTION'!S111) -> 0 | G111: =INDEX('LISTE DES TIREURS'!C$74:C$194,'FEUILLE D''INSCRIPTION'!S111) -> 0 | H111: =INDEX('FEUILLE D''INSCRIPTION'!U$7:U$15,'FEUILLE D''INSCRIPTION'!T111) -> 0 | I111: =INDEX('LISTE DES TIREURS'!G$8:G$82,'FEUILLE D''INSCRIPTION'!V111) -> 0 | J111: =INDEX('LISTE DES TIREURS'!F$8:F$82,'FEUILLE D''INSCRIPTION'!V111) -> 0 | N111: =INDEX('LISTE DES TIREURS'!D$74:D$181,'FEUILLE D''INSCRIPTION'!S111) -> 0 | R111: =IF(S111=1,"",COUNTIFS($S$7:$S$181,S111)) ->  | S111: 1 | T111: 1 | V111: 1
F112: =INDEX('LISTE DES TIREURS'!B$74:B$194,'FEUILLE D''INSCRIPTION'!S112) -> 0 | G112: =INDEX('LISTE DES TIREURS'!C$74:C$194,'FEUILLE D''INSCRIPTION'!S112) -> 0 | H112: =INDEX('FEUILLE D''INSCRIPTION'!U$7:U$15,'FEUILLE D''INSCRIPTION'!T112) -> 0 | I112: =INDEX('LISTE DES TIREURS'!G$8:G$82,'FEUILLE D''INSCRIPTION'!V112) -> 0 | J112: =INDEX('LISTE DES TIREURS'!F$8:F$82,'FEUILLE D''INSCRIPTION'!V112) -> 0 | N112: =INDEX('LISTE DES TIREURS'!D$74:D$181,'FEUILLE D''INSCRIPTION'!S112) -> 0 | R112: =IF(S112=1,"",COUNTIFS($S$7:$S$181,S112)) ->  | S112: 1 | T112: 1 | V112: 1
F113: =INDEX('LISTE DES TIREURS'!B$74:B$194,'FEUILLE D''INSCRIPTION'!S113) -> 0 | G113: =INDEX('LISTE DES TIREURS'!C$74:C$194,'FEUILLE D''INSCRIPTION'!S113) -> 0 | H113: =INDEX('FEUILLE D''INSCRIPTION'!U$7:U$15,'FEUILLE D''INSCRIPTION'!T113) -> 0 | I113: =INDEX('LISTE DES TIREURS'!G$8:G$82,'FEUILLE D''INSCRIPTION'!V113) -> 0 | J113: =INDEX('LISTE DES TIREURS'!F$8:F$82,'FEUILLE D''INSCRIPTION'!V113) -> 0 | N113: =INDEX('LISTE DES TIREURS'!D$74:D$181,'FEUILLE D''INSCRIPTION'!S113) -> 0 | S113: 1 | T113: 1 | V113: 1
F115: =INDEX('LISTE DES TIREURS'!B$74:B$194,'FEUILLE D''INSCRIPTION'!S115) -> 0 | G115: =INDEX('LISTE DES TIREURS'!C$74:C$194,'FEUILLE D''INSCRIPTION'!S115) -> 0 | H115: =INDEX('FEUILLE D''INSCRIPTION'!U$7:U$15,'FEUILLE D''INSCRIPTION'!T115) -> 0 | I115: =INDEX('LISTE DES TIREURS'!G$8:G$82,'FEUILLE D''INSCRIPTION'!V115) -> 0 | J115: =INDEX('LISTE DES TIREURS'!F$8:F$82,'FEUILLE D''INSCRIPTION'!V115) -> 0 | K115: =IF(F115>0,$I$3,"") ->  | L115: =IF(F115>0,$F$2,"") ->  | M115: =IF(F115>0,$G$3,"") ->  | N115: =INDEX('LISTE DES TIREURS'!D$74:D$181,'FEUILLE D''INSCRIPTION'!S115) -> 0 | R115: =IF(S115=1,"",COUNTIFS($S$7:$S$181,S115)) ->  | S115: 1 | T115: 1 | V115: 1
F116: =INDEX('LISTE DES TIREURS'!B$74:B$194,'FEUILLE D''INSCRIPTION'!S116) -> 0 | G116: =INDEX('LISTE DES TIREURS'!C$74:C$194,'FEUILLE D''INSCRIPTION'!S116) -> 0 | H116: =INDEX('FEUILLE D''INSCRIPTION'!U$7:U$15,'FEUILLE D''INSCRIPTION'!T116) -> 0 | I116: =INDEX('LISTE DES TIREURS'!G$8:G$82,'FEUILLE D''INSCRIPTION'!V116) -> 0 | J116: =INDEX('LISTE DES TIREURS'!F$8:F$82,'FEUILLE D''INSCRIPTION'!V116) -> 0 | N116: =INDEX('LISTE DES TIREURS'!D$74:D$181,'FEUILLE D''INSCRIPTION'!S116) -> 0 | S116: 1 | T116: 1 | V116: 1
F117: =INDEX('LISTE DES TIREURS'!B$74:B$194,'FEUILLE D''INSCRIPTION'!S117) -> 0 | G117: =INDEX('LISTE DES TIREURS'!C$74:C$194,'FEUILLE D''INSCRIPTION'!S117) -> 0 | H117: =INDEX('FEUILLE D''INSCRIPTION'!U$7:U$15,'FEUILLE D''INSCRIPTION'!T117) -> 0 | I117: =INDEX('LISTE DES TIREURS'!G$8:G$82,'FEUILLE D''INSCRIPTION'!V117) -> 0 | J117: =INDEX('LISTE DES TIREURS'!F$8:F$82,'FEUILLE D''INSCRIPTION'!V117) -> 0 | N117: =INDEX('LISTE DES TIREURS'!D$74:D$181,'FEUILLE D''INSCRIPTION'!S117) -> 0 | R117: =IF(S117=1,"",COUNTIFS($S$7:$S$181,S117)) ->  | S117: 1 | T117: 1 | V117: 1
F118: =INDEX('LISTE DES TIREURS'!B$74:B$194,'FEUILLE D''INSCRIPTION'!S118) -> 0 | G118: =INDEX('LISTE DES TIREURS'!C$74:C$194,'FEUILLE D''INSCRIPTION'!S118) -> 0 | H118: =INDEX('FEUILLE D''INSCRIPTION'!U$7:U$15,'FEUILLE D''INSCRIPTION'!T118) -> 0 | I118: =INDEX('LISTE DES TIREURS'!G$8:G$82,'FEUILLE D''INSCRIPTION'!V118) -> 0 | J118: =INDEX('LISTE DES TIREURS'!F$8:F$82,'FEUILLE D''INSCRIPTION'!V118) -> 0 | N118: =INDEX('LISTE DES TIREURS'!D$74:D$181,'FEUILLE D''INSCRIPTION'!S118) -> 0 | R118: =IF(S118=1,"",COUNTIFS($S$7:$S$181,S118)) ->  | S118: 1 | T118: 1 | V118: 1
F119: =INDEX('LISTE DES TIREURS'!B$74:B$194,'FEUILLE D''INSCRIPTION'!S119) -> 0 | G119: =INDEX('LISTE DES TIREURS'!C$74:C$194,'FEUILLE D''INSCRIPTION'!S119) -> 0 | H119: =INDEX('FEUILLE D''INSCRIPTION'!U$7:U$15,'FEUILLE D''INSCRIPTION'!T119) -> 0 | I119: =INDEX('LISTE DES TIREURS'!G$8:G$82,'FEUILLE D''INSCRIPTION'!V119) -> 0 | J119: =INDEX('LISTE DES TIREURS'!F$8:F$82,'FEUILLE D''INSCRIPTION'!V119) -> 0 | N119: =INDEX('LISTE DES TIREURS'!D$74:D$181,'FEUILLE D''INSCRIPTION'!S119) -> 0 | S119: 1 | T119: 1 | V119: 1
F121: =INDEX('LISTE DES TIREURS'!B$74:B$194,'FEUILLE D''INSCRIPTION'!S121) -> 0 | G121: =INDEX('LISTE DES TIREURS'!C$74:C$194,'FEUILLE D''INSCRIPTION'!S121) -> 0 | H121: =INDEX('FEUILLE D''INSCRIPTION'!U$7:U$15,'FEUILLE D''INSCRIPTION'!T121) -> 0 | I121: =INDEX('LISTE DES TIREURS'!G$8:G$82,'FEUILLE D''INSCRIPTION'!V121) -> 0 | J121: =INDEX('LISTE DES TIREURS'!F$8:F$82,'FEUILLE D''INSCRIPTION'!V121) -> 0 | K121: =IF(F121>0,$I$3,"") ->  | L121: =IF(F121>0,$F$2,"") ->  | M121: =IF(F121>0,$G$3,"") ->  | N121: =INDEX('LISTE DES TIREURS'!D$74:D$181,'FEUILLE D''INSCRIPTION'!S121) -> 0 | R121: =IF(S121=1,"",COUNTIFS($S$7:$S$181,S121)) ->  | S121: 1 | T121: 1 | V121: 1
F122: =INDEX('LISTE DES TIREURS'!B$74:B$194,'FEUILLE D''INSCRIPTION'!S122) -> 0 | G122: =INDEX('LISTE DES TIREURS'!C$74:C$194,'FEUILLE D''INSCRIPTION'!S122) -> 0 | H122: =INDEX('FEUILLE D''INSCRIPTION'!U$7:U$15,'FEUILLE D''INSCRIPTION'!T122) -> 0 | I122: =INDEX('LISTE DES TIREURS'!G$8:G$82,'FEUILLE D''INSCRIPTION'!V122) -> 0 | J122: =INDEX('LISTE DES TIREURS'!F$8:F$82,'FEUILLE D''INSCRIPTION'!V122) -> 0 | N122: =INDEX('LISTE DES TIREURS'!D$74:D$181,'FEUILLE D''INSCRIPTION'!S122) -> 0 | S122: 1 | T122: 1 | V122: 1
F123: =INDEX('LISTE DES TIREURS'!B$74:B$194,'FEUILLE D''INSCRIPTION'!S123) -> 0 | G123: =INDEX('LISTE DES TIREURS'!C$74:C$194,'FEUILLE D''INSCRIPTION'!S123) -> 0 | H123: =INDEX('FEUILLE D''INSCRIPTION'!U$7:U$15,'FEUILLE D''INSCRIPTION'!T123) -> 0 | I123: =INDEX('LISTE DES TIREURS'!G$8:G$82,'FEUILLE D''INSCRIPTION'!V123) -> 0 | J123: =INDEX('LISTE DES TIREURS'!F$8:F$82,'FEUILLE D''INSCRIPTION'!V123) -> 0 | N123: =INDEX('LISTE DES TIREURS'!D$74:D$181,'FEUILLE D''INSCRIPTION'!S123) -> 0 | R123: =IF(S123=1,"",COUNTIFS($S$7:$S$181,S123)) ->  | S123: 1 | T123: 1 | V123: 1
F124: =INDEX('LISTE DES TIREURS'!B$74:B$194,'FEUILLE D''INSCRIPTION'!S124) -> 0 | G124: =INDEX('LISTE DES TIREURS'!C$74:C$194,'FEUILLE D''INSCRIPTION'!S124) -> 0 | H124: =INDEX('FEUILLE D''INSCRIPTION'!U$7:U$15,'FEUILLE D''INSCRIPTION'!T124) -> 0 | I124: =INDEX('LISTE DES TIREURS'!G$8:G$82,'FEUILLE D''INSCRIPTION'!V124) -> 0 | J124: =INDEX('LISTE DES TIREURS'!F$8:F$82,'FEUILLE D''INSCRIPTION'!V124) -> 0 | N124: =INDEX('LISTE DES TIREURS'!D$74:D$181,'FEUILLE D''INSCRIPTION'!S124) -> 0 | R124: =IF(S124=1,"",COUNTIFS($S$7:$S$181,S124)) ->  | S124: 1 | T124: 1 | V124: 1
F125: =INDEX('LISTE DES TIREURS'!B$74:B$194,'FEUILLE D''INSCRIPTION'!S125) -> 0 | G125: =INDEX('LISTE DES TIREURS'!C$74:C$194,'FEUILLE D''INSCRIPTION'!S125) -> 0 | H125: =INDEX('FEUILLE D''INSCRIPTION'!U$7:U$15,'FEUILLE D''INSCRIPTION'!T125) -> 0 | I125: =INDEX('LISTE DES TIREURS'!G$8:G$82,'FEUILLE D''INSCRIPTION'!V125) -> 0 | J125: =INDEX('LISTE DES TIREURS'!F$8:F$82,'FEUILLE D''INSCRIPTION'!V125) -> 0 | N125: =INDEX('LISTE DES TIREURS'!D$74:D$181,'FEUILLE D''INSCRIPTION'!S125) -> 0 | S125: 1 | T125: 1 | V125: 1
V126: 2
F127: =INDEX('LISTE DES TIREURS'!B$74:B$194,'FEUILLE D''INSCRIPTION'!S127) -> 0 | G127: =INDEX('LISTE DES TIREURS'!C$74:C$194,'FEUILLE D''INSCRIPTION'!S127) -> 0 | H127: =INDEX('FEUILLE D''INSCRIPTION'!U$7:U$15,'FEUILLE D''INSCRIPTION'!T127) -> 0 | I127: =INDEX('LISTE DES TIREURS'!G$8:G$82,'FEUILLE D''INSCRIPTION'!V127) -> 0 | J127: =INDEX('LISTE DES TIREURS'!F$8:F$82,'FEUILLE D''INSCRIPTION'!V127) -> 0 | K127: =IF(F127>0,$I$3,"") ->  | L127: =IF(F127>0,$F$2,"") ->  | M127: =IF(F127>0,$G$3,"") ->  | N127: =INDEX('LISTE DES TIREURS'!D$74:D$181,'FEUILLE D''INSCRIPTION'!S127) -> 0 | R127: =IF(S127=1,"",COUNTIFS($S$7:$S$181,S127)) ->  | S127: 1 | T127: 1 | V127: 1
F128: =INDEX('LISTE DES TIREURS'!B$74:B$194,'FEUILLE D''INSCRIPTION'!S128) -> 0 | G128: =INDEX('LISTE DES TIREURS'!C$74:C$194,'FEUILLE D''INSCRIPTION'!S128) -> 0 | H128: =INDEX('FEUILLE D''INSCRIPTION'!U$7:U$15,'FEUILLE D''INSCRIPTION'!T128) -> 0 | I128: =INDEX('LISTE DES TIREURS'!G$8:G$82,'FEUILLE D''INSCRIPTION'!V128) -> 0 | J128: =INDEX('LISTE DES TIREURS'!F$8:F$82,'FEUILLE D''INSCRIPTION'!V128) -> 0 | N128: =INDEX('LISTE DES TIREURS'!D$74:D$181,'FEUILLE D''INSCRIPTION'!S128) -> 0 | S128: 1 | T128: 1 | V128: 1
F129: =INDEX('LISTE DES TIREURS'!B$74:B$194,'FEUILLE D''INSCRIPTION'!S129) -> 0 | G129: =INDEX('LISTE DES TIREURS'!C$74:C$194,'FEUILLE D''INSCRIPTION'!S129) -> 0 | H129: =INDEX('FEUILLE D''INSCRIPTION'!U$7:U$15,'FEUILLE D''INSCRIPTION'!T129) -> 0 | I129: =INDEX('LISTE DES TIREURS'!G$8:G$82,'FEUILLE D''INSCRIPTION'!V129) -> 0 | J129: =INDEX('LISTE DES TIREURS'!F$8:F$82,'FEUILLE D''INSCRIPTION'!V129) -> 0 | N129: =INDEX('LISTE DES TIREURS'!D$74:D$181,'FEUILLE D''INSCRIPTION'!S129) -> 0 | R129: =IF(S129=1,"",COUNTIFS($S$7:$S$181,S129)) ->  | S129: 1 | T129: 1 | V129: 1
F130: =INDEX('LISTE DES TIREURS'!B$74:B$194,'FEUILLE D''INSCRIPTION'!S130) -> 0 | G130: =INDEX('LISTE DES TIREURS'!C$74:C$194,'FEUILLE D''INSCRIPTION'!S130) -> 0 | H130: =INDEX('FEUILLE D''INSCRIPTION'!U$7:U$15,'FEUILLE D''INSCRIPTION'!T130) -> 0 | I130: =INDEX('LISTE DES TIREURS'!G$8:G$82,'FEUILLE D''INSCRIPTION'!V130) -> 0 | J130: =INDEX('LISTE DES TIREURS'!F$8:F$82,'FEUILLE D''INSCRIPTION'!V130) -> 0 | N130: =INDEX('LISTE DES TIREURS'!D$74:D$181,'FEUILLE D''INSCRIPTION'!S130) -> 0 | R130: =IF(S130=1,"",COUNTIFS($S$7:$S$181,S130)) ->  | S130: 1 | T130: 1 | V130: 1
F131: =INDEX('LISTE DES TIREURS'!B$74:B$194,'FEUILLE D''INSCRIPTION'!S131) -> 0 | G131: =INDEX('LISTE DES TIREURS'!C$74:C$194,'FEUILLE D''INSCRIPTION'!S131) -> 0 | H131: =INDEX('FEUILLE D''INSCRIPTION'!U$7:U$15,'FEUILLE D''INSCRIPTION'!T131) -> 0 | I131: =INDEX('LISTE DES TIREURS'!G$8:G$82,'FEUILLE D''INSCRIPTION'!V131) -> 0 | J131: =INDEX('LISTE DES TIREURS'!F$8:F$82,'FEUILLE D''INSCRIPTION'!V131) -> 0 | N131: =INDEX('LISTE DES TIREURS'!D$74:D$181,'FEUILLE D''INSCRIPTION'!S131) -> 0 | S131: 1 | T131: 1 | V131: 1
F133: =INDEX('LISTE DES TIREURS'!B$74:B$194,'FEUILLE D''INSCRIPTION'!S133) -> 0 | G133: =INDEX('LISTE DES TIREURS'!C$74:C$194,'FEUILLE D''INSCRIPTION'!S133) -> 0 | H133: =INDEX('FEUILLE D''INSCRIPTION'!U$7:U$15,'FEUILLE D''INSCRIPTION'!T133) -> 0 | I133: =INDEX('LISTE DES TIREURS'!G$8:G$82,'FEUILLE D''INSCRIPTION'!V133) -> 0 | J133: =INDEX('LISTE DES TIREURS'!F$8:F$82,'FEUILLE D''INSCRIPTION'!V133) -> 0 | K133: =IF(F133>0,$I$3,"") ->  | L133: =IF(F133>0,$F$2,"") ->  | M133: =IF(F133>0,$G$3,"") ->  | N133: =INDEX('LISTE DES TIREURS'!D$74:D$181,'FEUILLE D''INSCRIPTION'!S133) -> 0 | R133: =IF(S133=1,"",COUNTIFS($S$7:$S$181,S133)) ->  | S133: 1 | T133: 1 | V133: 1
F134: =INDEX('LISTE DES TIREURS'!B$74:B$194,'FEUILLE D''INSCRIPTION'!S134) -> 0 | G134: =INDEX('LISTE DES TIREURS'!C$74:C$194,'FEUILLE D''INSCRIPTION'!S134) -> 0 | H134: =INDEX('FEUILLE D''INSCRIPTION'!U$7:U$15,'FEUILLE D''INSCRIPTION'!T134) -> 0 | I134: =INDEX('LISTE DES TIREURS'!G$8:G$82,'FEUILLE D''INSCRIPTION'!V134) -> 0 | J134: =INDEX('LISTE DES TIREURS'!F$8:F$82,'FEUILLE D''INSCRIPTION'!V134) -> 0 | N134: =INDEX('LISTE DES TIREURS'!D$74:D$181,'FEUILLE D''INSCRIPTION'!S134) -> 0 | S134: 1 | T134: 1 | V134: 1
F135: =INDEX('LISTE DES TIREURS'!B$74:B$194,'FEUILLE D''INSCRIPTION'!S135) -> 0 | G135: =INDEX('LISTE DES TIREURS'!C$74:C$194,'FEUILLE D''INSCRIPTION'!S135) -> 0 | H135: =INDEX('FEUILLE D''INSCRIPTION'!U$7:U$15,'FEUILLE D''INSCRIPTION'!T135) -> 0 | I135: =INDEX('LISTE DES TIREURS'!G$8:G$82,'FEUILLE D''INSCRIPTION'!V135) -> 0 | J135: =INDEX('LISTE DES TIREURS'!F$8:F$82,'FEUILLE D''INSCRIPTION'!V135) -> 0 | N135: =INDEX('LISTE DES TIREURS'!D$74:D$181,'FEUILLE D''INSCRIPTION'!S135) -> 0 | R135: =IF(S135=1,"",COUNTIFS($S$7:$S$181,S135)) ->  | S135: 1 | T135: 1 | V135: 1
F136: =INDEX('LISTE DES TIREURS'!B$74:B$194,'FEUILLE D''INSCRIPTION'!S136) -> 0 | G136: =INDEX('LISTE DES TIREURS'!C$74:C$194,'FEUILLE D''INSCRIPTION'!S136) -> 0 | H136: =INDEX('FEUILLE D''INSCRIPTION'!U$7:U$15,'FEUILLE D''INSCRIPTION'!T136) -> 0 | I136: =INDEX('LISTE DES TIREURS'!G$8:G$82,'FEUILLE D''INSCRIPTION'!V136) -> 0 | J136: =INDEX('LISTE DES TIREURS'!F$8:F$82,'FEUILLE D''INSCRIPTION'!V136) -> 0 | N136: =INDEX('LISTE DES TIREURS'!D$74:D$181,'FEUILLE D''INSCRIPTION'!S136) -> 0 | R136: =IF(S136=1,"",COUNTIFS($S$7:$S$181,S136)) ->  | S136: 1 | T136: 1 | V136: 1
F137: =INDEX('LISTE DES TIREURS'!B$74:B$194,'FEUILLE D''INSCRIPTION'!S137) -> 0 | G137: =INDEX('LISTE DES TIREURS'!C$74:C$194,'FEUILLE D''INSCRIPTION'!S137) -> 0 | H137: =INDEX('FEUILLE D''INSCRIPTION'!U$7:U$15,'FEUILLE D''INSCRIPTION'!T137) -> 0 | I137: =INDEX('LISTE DES TIREURS'!G$8:G$82,'FEUILLE D''INSCRIPTION'!V137) -> 0 | J137: =INDEX('LISTE DES TIREURS'!F$8:F$82,'FEUILLE D''INSCRIPTION'!V137) -> 0 | N137: =INDEX('LISTE DES TIREURS'!D$74:D$181,'FEUILLE D''INSCRIPTION'!S137) -> 0 | S137: 1 | T137: 1 | V137: 1
V138: 2
F139: =INDEX('LISTE DES TIREURS'!B$74:B$194,'FEUILLE D''INSCRIPTION'!S139) -> 0 | G139: =INDEX('LISTE DES TIREURS'!C$74:C$194,'FEUILLE D''INSCRIPTION'!S139) -> 0 | H139: =INDEX('FEUILLE D''INSCRIPTION'!U$7:U$15,'FEUILLE D''INSCRIPTION'!T139) -> 0 | I139: =INDEX('LISTE DES TIREURS'!G$8:G$82,'FEUILLE D''INSCRIPTION'!V139) -> 0 | J139: =INDEX('LISTE DES TIREURS'!F$8:F$82,'FEUILLE D''INSCRIPTION'!V139) -> 0 | K139: =IF(F139>0,$I$3,"") ->  | L139: =IF(F139>0,$F$2,"") ->  | M139: =IF(F139>0,$G$3,"") ->  | N139: =INDEX('LISTE DES TIREURS'!D$74:D$181,'FEUILLE D''INSCRIPTION'!S139) -> 0 | R139: =IF(S139=1,"",COUNTIFS($S$7:$S$181,S139)) ->  | S139: 1 | T139: 1 | V139: 1
F140: =INDEX('LISTE DES TIREURS'!B$74:B$194,'FEUILLE D''INSCRIPTION'!S140) -> 0 | G140: =INDEX('LISTE DES TIREURS'!C$74:C$194,'FEUILLE D''INSCRIPTION'!S140) -> 0 | H140: =INDEX('FEUILLE D''INSCRIPTION'!U$7:U$15,'FEUILLE D''INSCRIPTION'!T140) -> 0 | I140: =INDEX('LISTE DES TIREURS'!G$8:G$82,'FEUILLE D''INSCRIPTION'!V140) -> 0 | J140: =INDEX('LISTE DES TIREURS'!F$8:F$82,'FEUILLE D''INSCRIPTION'!V140) -> 0 | N140: =INDEX('LISTE DES TIREURS'!D$74:D$181,'FEUILLE D''INSCRIPTION'!S140) -> 0 | S140: 1 | T140: 1 | V140: 1
F141: =INDEX('LISTE DES TIREURS'!B$74:B$194,'FEUILLE D''INSCRIPTION'!S141) -> 0 | G141: =INDEX('LISTE DES TIREURS'!C$74:C$194,'FEUILLE D''INSCRIPTION'!S141) -> 0 | H141: =INDEX('FEUILLE D''INSCRIPTION'!U$7:U$15,'FEUILLE D''INSCRIPTION'!T141) -> 0 | I141: =INDEX('LISTE DES TIREURS'!G$8:G$82,'FEUILLE D''INSCRIPTION'!V141) -> 0 | J141: =INDEX('LISTE DES TIREURS'!F$8:F$82,'FEUILLE D''INSCRIPTION'!V141) -> 0 | N141: =INDEX('LISTE DES TIREURS'!D$74:D$181,'FEUILLE D''INSCRIPTION'!S141) -> 0 | R141: =IF(S141=1,"",COUNTIFS($S$7:$S$181,S141)) ->  | S141: 1 | T141: 1 | V141: 1
F142: =INDEX('LISTE DES TIREURS'!B$74:B$194,'FEUILLE D''INSCRIPTION'!S142) -> 0 | G142: =INDEX('LISTE DES TIREURS'!C$74:C$194,'FEUILLE D''INSCRIPTION'!S142) -> 0 | H142: =INDEX('FEUILLE D''INSCRIPTION'!U$7:U$15,'FEUILLE D''INSCRIPTION'!T142) -> 0 | I142: =INDEX('LISTE DES TIREURS'!G$8:G$82,'FEUILLE D''INSCRIPTION'!V142) -> 0 | J142: =INDEX('LISTE DES TIREURS'!F$8:F$82,'FEUILLE D''INSCRIPTION'!V142) -> 0 | N142: =INDEX('LISTE DES TIREURS'!D$74:D$181,'FEUILLE D''INSCRIPTION'!S142) -> 0 | R142: =IF(S142=1,"",COUNTIFS($S$7:$S$181,S142)) ->  | S142: 1 | T142: 1 | V142: 1
F143: =INDEX('LISTE DES TIREURS'!B$74:B$194,'FEUILLE D''INSCRIPTION'!S143) -> 0 | G143: =INDEX('LISTE DES TIREURS'!C$74:C$194,'FEUILLE D''INSCRIPTION'!S143) -> 0 | H143: =INDEX('FEUILLE D''INSCRIPTION'!U$7:U$15,'FEUILLE D''INSCRIPTION'!T143) -> 0 | I143: =INDEX('LISTE DES TIREURS'!G$8:G$82,'FEUILLE D''INSCRIPTION'!V143) -> 0 | J143: =INDEX('LISTE DES TIREURS'!F$8:F$82,'FEUILLE D''INSCRIPTION'!V143) -> 0 | N143: =INDEX('LISTE DES TIREURS'!D$74:D$181,'FEUILLE D''INSCRIPTION'!S143) -> 0 | S143: 1 | T143: 1 | V143: 1
F145: =INDEX('LISTE DES TIREURS'!B$74:B$194,'FEUILLE D''INSCRIPTION'!S145) -> 0 | G145: =INDEX('LISTE DES TIREURS'!C$74:C$194,'FEUILLE D''INSCRIPTION'!S145) -> 0 | H145: =INDEX('FEUILLE D''INSCRIPTION'!U$7:U$15,'FEUILLE D''INSCRIPTION'!T145) -> 0 | I145: =INDEX('LISTE DES TIREURS'!G$8:G$82,'FEUILLE D''INSCRIPTION'!V145) -> 0 | J145: =INDEX('LISTE DES TIREURS'!F$8:F$82,'FEUILLE D''INSCRIPTION'!V145) -> 0 | K145: =IF(F145>0,$I$3,"") ->  | L145: =IF(F145>0,$F$2,"") ->  | M145: =IF(F145>0,$G$3,"") ->  | N145: =INDEX('LISTE DES TIREURS'!D$74:D$181,'FEUILLE D''INSCRIPTION'!S145) -> 0 | R145: =IF(S145=1,"",COUNTIFS($S$7:$S$181,S145)) ->  | S145: 1 | T145: 1 | V145: 1
F146: =INDEX('LISTE DES TIREURS'!B$74:B$194,'FEUILLE D''INSCRIPTION'!S146) -> 0 | G146: =INDEX('LISTE DES TIREURS'!C$74:C$194,'FEUILLE D''INSCRIPTION'!S146) -> 0 | H146: =INDEX('FEUILLE D''INSCRIPTION'!U$7:U$15,'FEUILLE D''INSCRIPTION'!T146) -> 0 | I146: =INDEX('LISTE DES TIREURS'!G$8:G$82,'FEUILLE D''INSCRIPTION'!V146) -> 0 | J146: =INDEX('LISTE DES TIREURS'!F$8:F$82,'FEUILLE D''INSCRIPTION'!V146) -> 0 | N146: =INDEX('LISTE DES TIREURS'!D$74:D$181,'FEUILLE D''INSCRIPTION'!S146) -> 0 | S146: 1 | T146: 1 | V146: 1
F147: =INDEX('LISTE DES TIREURS'!B$74:B$194,'FEUILLE D''INSCRIPTION'!S147) -> 0 | G147: =INDEX('LISTE DES TIREURS'!C$74:C$194,'FEUILLE D''INSCRIPTION'!S147) -> 0 | H147: =INDEX('FEUILLE D''INSCRIPTION'!U$7:U$15,'FEUILLE D''INSCRIPTION'!T147) -> 0 | I147: =INDEX('LISTE DES TIREURS'!G$8:G$82,'FEUILLE D''INSCRIPTION'!V147) -> 0 | J147: =INDEX('LISTE DES TIREURS'!F$8:F$82,'FEUILLE D''INSCRIPTION'!V147) -> 0 | N147: =INDEX('LISTE DES TIREURS'!D$74:D$181,'FEUILLE D''INSCRIPTION'!S147) -> 0 | R147: =IF(S147=1,"",COUNTIFS($S$7:$S$181,S147)) ->  | S147: 1 | T147: 1 | V147: 1
F148: =INDEX('LISTE DES TIREURS'!B$74:B$194,'FEUILLE D''INSCRIPTION'!S148) -> 0 | G148: =INDEX('LISTE DES TIREURS'!C$74:C$194,'FEUILLE D''INSCRIPTION'!S148) -> 0 | H148: =INDEX('FEUILLE D''INSCRIPTION'!U$7:U$15,'FEUILLE D''INSCRIPTION'!T148) -> 0 | I148: =INDEX('LISTE DES TIREURS'!G$8:G$82,'FEUILLE D''INSCRIPTION'!V148) -> 0 | J148: =INDEX('LISTE DES TIREURS'!F$8:F$82,'FEUILLE D''INSCRIPTION'!V148) -> 0 | N148: =INDEX('LISTE DES TIREURS'!D$74:D$181,'FEUILLE D''INSCRIPTION'!S148) -> 0 | R148: =IF(S148=1,"",COUNTIFS($S$7:$S$181,S148)) ->  | S148: 1 | T148: 1 | V148: 1
F149: =INDEX('LISTE DES TIREURS'!B$74:B$194,'FEUILLE D''INSCRIPTION'!S149) -> 0 | G149: =INDEX('LISTE DES TIREURS'!C$74:C$194,'FEUILLE D''INSCRIPTION'!S149) -> 0 | H149: =INDEX('FEUILLE D''INSCRIPTION'!U$7:U$15,'FEUILLE D''INSCRIPTION'!T149) -> 0 | I149: =INDEX('LISTE DES TIREURS'!G$8:G$82,'FEUILLE D''INSCRIPTION'!V149) -> 0 | J149: =INDEX('LISTE DES TIREURS'!F$8:F$82,'FEUILLE D''INSCRIPTION'!V149) -> 0 | N149: =INDEX('LISTE DES TIREURS'!D$74:D$181,'FEUILLE D''INSCRIPTION'!S149) -> 0 | S149: 1 | T149: 1 | V149: 1
T561: 1
T661: 1
V1035: 2

Sheet MODE D'EMPLOI
